Cogmind - Beta 14 @@@ ROGUE MODE // 2024.11.07 @ 15:16:28 Player: Perseus Result: Escaped! Performance ------------- Evolutions (9) 4500 Regions Visited (34) 6800 Robots Destroyed (706) 3530 Value Destroyed (36858) 36858 Prototype IDs (201) 4020 Alien Tech Used (16) 3200 Bonus (43817) 43817 TOTAL SCORE: 102725 Bonus ------- High Alert Combat Kills 24461 Follower Combat Kills 2565 Entered Garrisons 400 Used RIF Installer 1500 Registered with UFD 300 Met Data Miner 300 Met Zhirov 300 Met Warlord at Base 500 MAIN.C Attacked Warlord 500 Destroyed MAIN.C Guards 500 Met MAIN.C 5000 Destroyed MAIN.C Shell 5000 Win 3000 Friendly Fire -509 Cogmind --------- Core Integrity 182/1600 Matter 270/300 Energy 348/350 System Corruption 0% Temperature Cool (4) Movement Hovering (45) Location To Epsilon Eridani Parts ------- > --- POWER (2) -------- Quantum Reactor > --- PROPULSION (7) --- Improved Antigrav System Improved Antigrav System Experimental Gyrokinetic Inverter Cooled Linear Gravjet > --- UTILITY (13) ----- Spectral Analyzer Experimental Sensor Array Advanced Melee Analysis Suite Advanced Melee Analysis Suite Improved Core Shielding Graphene Brace > --- WEAPON (3) ------- Nanosword > --- INVENTORY (7) ---- Quantum Reactor Advanced Heat Sink Advanced Matter Compressor (400) Peak State ------------ > --- POWER ------------ Quantum Reactor Improved Quantum Reactor > --- PROPULSION ------- Cooled Antigrav System Cooled Antigrav System Experimental Gyrokinetic Inverter Experimental Gyrokinetic Inverter Cooled Linear Gravjet Cooled Linear Gravjet Combat Linear Gravjet > --- UTILITY ---------- High-capacity Storage Unit Spectral Analyzer Experimental Sensor Array Experimental Signal Interpreter Experimental Terrain Scan Processor Experimental Actuator Array Experimental Transmission Jammer Advanced Reaction Control System Experimental Cloaking Device Experimental EM Disruption Field Deep Network Scanner Experimental System Shield Quantum Router > --- WEAPON ----------- Nanosword Sigix Broadsword > --- INVENTORY -------- Light Quantum Reactor Antigrav Array Cooled Linear Gravjet Cooled Linear Gravjet Advanced Cooling System Advanced Coolant Injector Advanced Matter Compressor Experimental Terrain Scanner Launcher Loader Quantum Capacitor Stasis Canceller Beam Splitter Experimental Force Field Terrabomb Compact HERF Cannon Enhanced Nova Cannon Smartbomb Launcher Advanced Datajack [Rating: 249] Favorites ----------- Power Light Quantum Reactor Engine Angular Momentum Engine Power Core Fission Core Reactor Light Quantum Reactor Propulsion Cooled Antigrav System Treads Light Treads Leg Aluminum Leg Wheel Compact Wheel Hover Unit Cooled Antigrav System Flight Unit VTOL Module Utility Experimental Signal Interpreter Device Experimental Sensor Array Storage High-capacity Storage Unit Processor Experimental Signal Interpreter Hackware Deep Network Scanner Protection Experimental Utility Shielding Artifact Phase Redirector Weapon Sigix Broadsword Energy Gun Subdweller Laser Energy Cannon Cooled Plasma Cannon Ballistic Gun Barrage Gun Ballistic Cannon Bore Cannon Launcher Smartbomb Launcher Special Weapon Remote Datajack Impact Weapon Heavy Mace Slashing Weapon Sigix Broadsword Piercing Weapon Kinetic Spear Special Melee Weapon Improved Datajack Build | -11 -10 -10 -8 -8 -6 -6 -6 -6 -6 -6 -5 -5 -5 -5 -5 -5 -5 -4 -4 -4 -4 -4 -4 -4 -3 -3 -3 -3 -2 -2 -2 -2 -1 -1 ------- Run | Yrd Mat Sub Rec Scr Fac Was Fac Low Low Dat Pro Fac Was Fac Upp Upp War Pro Fac Was Fac Upp Upp Zhi Pro Res Tes Gar Res Qua Sec Gar Acc Com Slots Evolved 18 | . . . . . 8 . . . . . . 2 . . . . . . 2 . . . . . . 2 . . 2 . . . 2 . Power 1 | . . . . . . . . . . . . . . . . . . . . . . . . . . . . . 1 . . . . . Propulsion 5 | . . . . . 3 . . . . . . . . . . . . . 1 . . . . . . 1 . . . . . . . . Utility 11 | . . . . . 5 . . . . . . 2 . . . . . . 1 . . . . . . 1 . . 1 . . . 1 . Weapon 1 | . . . . . . . . . . . . . . . . . . . . . . . . . . . . . . . . . 1 . Parts Attached 1561 | 7 5 13 2 10 31 2 51 15 22 . 25 64 . 50 17 34 16 42 62 14 34 38 19 20 17 110 44 18 89 50 120 33 48 439 Power 64 | 1 2 1 . . 4 . 6 . . . . 1 . 6 1 . . 2 1 . 4 . . 2 . 4 2 . 3 2 2 . 4 16 Engine 18 | 1 2 1 . . 1 . 3 . . . . 1 . 6 1 . . 1 . . . . . . . . . . . 1 . . . . Core 6 | . . . . . 3 . 3 . . . . . . . . . . . . . . . . . . . . . . . . . . . Reactor 40 | . . . . . . . . . . . . . . . . . . 1 1 . 4 . . 2 . 4 2 . 3 1 2 . 4 16 Propulsion 135 | 2 2 2 . 1 9 1 14 2 . . . 9 . 7 1 1 4 . 5 5 3 . . 4 . 10 5 . 10 4 8 . 6 20 Treads 7 | 2 . 2 . . 3 . . . . . . . . . . . . . . . . . . . . . . . . . . . . . Leg 5 | . 2 . . . 1 . . . . . . . . . . . 1 . . . . . . 1 . . . . . . . . . . Wheel 1 | . . . . 1 . . . . . . . . . . . . . . . . . . . . . . . . . . . . . . Hover 117 | . . . . . 1 1 14 2 . . . 9 . 7 1 1 2 . 5 5 3 . . 3 . 10 5 . 10 4 8 . 6 20 Flight 5 | . . . . . 4 . . . . . . . . . . . 1 . . . . . . . . . . . . . . . . . Utility 810 | 2 . 3 1 6 10 1 25 9 7 . 10 38 . 29 10 17 8 22 37 5 16 10 7 7 5 73 21 7 48 15 64 20 30 247 Device 606 | 1 . 2 1 3 6 1 12 6 2 . 8 26 . 19 7 15 3 19 23 4 15 8 5 4 3 55 16 5 40 10 49 17 22 199 Storage 25 | 1 . 1 . 2 1 . 1 1 1 . . 3 . . . . . . 4 . . . . 2 . 2 . . . . . . 1 5 Processor 34 | . . . . 1 2 . 9 . . . 1 2 . . 1 . 1 . 1 . . . . . . 1 2 . 1 . 1 . . 11 Hackware 28 | . . . . . . . . . . . . 3 . 1 . . 1 . 2 . . . . . . 3 1 . 1 2 1 3 2 8 Protection 116 | . . . . . 1 . 3 2 4 . 1 4 . 9 2 2 3 3 7 1 1 2 2 1 2 12 2 2 6 2 13 . 5 24 Artifact 1 | . . . . . . . . . . . . . . . . . . . . . . . . . . . . . . 1 . . . . Weapon 552 | 2 1 7 1 3 8 . 6 4 15 . 15 16 . 8 5 16 4 18 19 4 11 28 12 7 12 23 16 11 28 29 46 13 8 156 Energy Gun 27 | . 1 3 . 1 4 . . . . . 1 . . 1 . . . . . . . . . . . . 3 2 2 . . 1 . 8 Energy Cannon 132 | . . . . . 1 . 2 1 5 . 5 5 . 2 3 10 2 11 6 . . 14 6 1 4 5 2 . 8 4 9 . 2 24 Ballistic Gun 35 | 2 . 2 1 . 1 . . 1 4 . 4 . . . . . . . 1 . . . 1 . . . . . . . . . . 18 Ballistic Cannon 13 | . . . . . . . . . . . . . . . . . . . . . . . . . . . . . . . . . . 13 Launcher 65 | . . . . . . . . . 1 . 3 . . . . . . 1 . 1 3 9 1 1 2 4 1 2 . 2 3 4 1 26 Special Weapon 8 | . . . . 2 . . . . . . . . . . . 1 . . . . . . . 2 . . . . . . 1 . . 2 Impact Weapon 18 | . . . . . . . 3 1 3 . 2 2 . . . . . . . . . . . . . . . . . 2 . . . 5 Slashing Weapon 155 | . . 2 . . 1 . . . . . . 1 . 4 1 2 1 5 3 2 5 1 1 2 4 5 3 3 7 14 22 7 4 55 Piercing Weapon 42 | . . . . . 1 . . 1 . . . 3 . 1 1 1 . 1 2 1 3 4 3 1 2 9 3 3 1 1 . . . . Special Melee Weapon 57 | . . . . . . . 1 . 2 . . 5 . . . 2 1 . 7 . . . . . . . 4 1 10 6 11 1 1 5 Unidentified Prototypes 35 | . . . . . 2 . 1 1 . . . . . . . 1 7 . . . . . . 6 . . 4 . 1 6 3 1 . 2 Corrupted Parts 2 | . . . . . . . . 1 . . . . . . . . . 1 . . . . . . . . . . . . . . . . System Corruption 10 | . . . . . . . . 7 . . . . . . . . . 3 . . . . . . . . . . . . . . . . Parts Lost 76 | . 3 3 . . 20 1 3 . . . . 1 . 1 . . . 1 . . 1 . . . . 6 . . . . 2 . . 34 Power 8 | . 1 1 . . 2 . . . . . . . . . . . . . . . . . . . . 1 . . . . . . . 3 Propulsion 29 | . 1 . . . 10 1 1 . . . . . . . . . . . . . . . . . . 4 . . . . 1 . . 11 Utility 29 | . . 1 . . 5 . 2 . . . . 1 . . . . . 1 . . 1 . . . . 1 . . . . 1 . . 16 Weapon 10 | . 1 1 . . 3 . . . . . . . . 1 . . . . . . . . . . . . . . . . . . . 4 Highest Loss Streak 27 | . 2 2 . . 19 1 1 . . . . 1 . 1 . . . 1 . . 1 . . . . 3 . . . . 2 . . 27 To Critical Strikes 2 | . . . . . . . . . . . . . . . . . . . . . . . . . . . . . . . . . . 2 Average Slot Usage (%) 95 | . 99 99 100 100 74 38 95 99 99 100 99 99 100 98 97 99 99 99 93 91 93 91 93 93 91 94 94 92 94 91 90 90 91 93 Engine 2 | . 14 14 14 14 4 . 2 6 6 6 6 5 5 4 5 5 5 5 . . . . . . . . . . . . . . . . Reactor 4 | . . . . . . . . . . . . . . . . . . . 5 5 5 5 5 5 5 3 4 4 7 7 7 8 8 7 Treads 1 | . 22 18 28 14 19 . . . . . . . . . . . . . . . . . . . . . . . . . . . . . Hover 25 | . . . . . . 11 30 33 33 33 33 29 29 28 29 29 28 29 25 26 26 26 26 26 26 27 27 28 26 25 25 26 23 27 Device 12 | . 14 13 14 10 17 6 15 7 12 13 11 10 11 13 12 11 11 11 8 8 9 7 8 7 12 8 8 8 8 12 10 10 11 18 Storage 5 | . 14 14 14 14 5 . 3 5 5 6 6 5 5 5 5 5 5 5 5 5 5 5 5 6 5 4 4 4 4 4 4 4 4 3 Processor 14 | . . . . 3 3 13 22 25 20 20 21 19 23 17 18 22 17 17 15 15 15 15 15 15 15 14 14 14 13 13 13 13 9 13 Hackware 10 | . . . . . . . . . . . . 10 5 11 11 11 11 11 20 21 21 20 14 10 10 19 19 19 20 17 17 17 20 11 Protection 3 | . . . . . 4 . 1 4 5 6 6 3 5 3 . . 4 4 1 2 . 2 6 10 7 4 4 4 4 4 5 4 6 3 Energy Gun 1 | . 3 14 14 12 5 . . . . . . . . . . . . . . . . . . . . . . . . . . . . . Energy Cannon 1 | . . . . . . . 3 . 3 . 5 . . . 3 3 1 2 . . . 3 5 3 3 . . . . . . . 2 . Ballistic Gun 2 | . 24 13 13 14 5 . . 1 5 6 5 . . . . . . . . . . . . . . . . . . . . . . . Slashing Weapon 2 | . . . . . . . . . . . . . . 4 5 . . 2 3 3 4 . 2 1 1 3 . . 1 3 3 2 5 5 Piercing Weapon 1 | . . . . . . 6 6 4 . . . 2 5 3 1 4 5 4 2 2 4 2 1 5 . 3 3 2 3 . . . . . Peak Build Rating 249 | 7 8 16 16 22 56 26 72 77 82 72 79 89 88 91 92 93 101 105 123 131 134 135 134 137 140 174 180 180 203 223 226 224 242 249 Average Rating 139 | 5 7 11 14 18 38 23 63 69 72 72 74 82 88 85 87 87 91 99 117 119 126 130 130 133 135 161 168 174 190 213 215 213 235 225 On Entrance 103 | . 7 8 16 14 19 23 26 70 70 72 72 73 88 88 87 90 86 100 104 119 119 132 129 134 135 137 157 180 173 201 220 221 220 230 Naked Turns . | . . . . . . . . . . . . . . . . . . . . . . . . . . . . . . . . . . . Heaviest Build 122 | 12 14 53 52 52 67 4 43 40 45 39 48 49 47 51 51 48 54 62 64 57 50 59 69 63 69 75 72 77 86 85 87 92 99 122 Greatest Support 120 | 40 40 40 40 40 83 10 46 47 47 47 47 50 53 54 50 50 55 55 65 72 75 75 75 83 75 104 100 88 104 113 118 104 106 120 Greatest Overweight (x) 3 | . . 1 1 3 3 1 1 . . . 1 . . 1 1 . . 1 . . . . . . . 1 . . 1 . 1 . 1 1 Average Overweight (x) . | . . . 1 2 1 . . . . . . . . . . . . . . . . . . . . . . . . . . . . . Largest Inventory Capacity 22 | 8 8 20 20 20 20 5 10 10 10 10 10 15 15 15 15 15 15 15 20 15 15 15 15 15 15 20 20 20 20 20 22 22 22 22 Average Capacity 16 | 7 8 15 20 18 17 5 8 9 9 10 10 12 15 15 15 15 15 15 15 15 15 15 15 15 15 19 20 20 20 20 20 22 22 20 Most Carried 22 | 7 8 11 11 20 20 5 10 10 10 10 10 15 14 15 15 15 15 15 16 15 15 15 15 15 15 20 20 20 20 20 22 22 22 22 Average Carried 15 | 3 7 9 11 16 17 4 7 9 9 10 9 12 14 14 14 14 14 14 14 14 14 14 13 13 14 18 19 19 19 19 20 21 21 19 Final Capacity 22 | 8 8 20 20 20 5 5 10 10 10 10 10 15 15 15 15 15 15 15 15 15 15 15 15 15 15 20 20 20 20 20 22 22 22 22 Final Carried 22 | 6 8 11 11 20 5 5 10 10 10 10 10 14 14 15 15 15 15 15 15 15 15 15 15 15 15 20 20 20 20 20 22 22 22 22 Class Distribution -------------------- 27% | Hacker-Scout 16% | Scout 14% | Wizard-Ninja 12% | Hacker-Ninja 11% | Mutant 8% | Wizard-Scout 3% | Wizard-Sprinter Dominant Class ---------------- Mutant | -10/Materials Mutant | -10/Subcaves Mutant | -8/Recycling Mutant | -8/Scraptown Mutant | -6/Factory Mutant | -6/Waste Scout | -6/Factory Scout | -6/Lower Caves Scout | -6/Lower Caves Scout | -6/Data Miner Scout | -5/Proximity Caves Hacker-Scout | -5/Factory Scout | -5/Waste Hacker-Scout | -5/Factory Hacker-Scout | -5/Upper Caves Hacker-Scout | -5/Upper Caves Hacker-Scout | -5/Warlord Hacker-Scout | -4/Proximity Caves Hacker-Scout | -4/Factory Hacker-Scout | -4/Waste Hacker-Scout | -4/Factory Hacker-Scout | -4/Upper Caves Hacker-Scout | -4/Upper Caves Hacker-Scout | -4/Zhirov Hacker-Scout | -3/Proximity Caves Wizard-Scout | -3/Research Wizard-Scout | -3/Testing Wizard-Scout | -3/Garrison Wizard-Ninja | -2/Research Wizard-Ninja | -2/Quarantine Wizard-Ninja | -2/Section 7 Wizard-Sprinter | -2/Garrison Wizard-Ninja | -1/Access Hacker-Ninja | -1/Command Resources | -11 -10 -10 -8 -8 -6 -6 -6 -6 -6 -6 -5 -5 -5 -5 -5 -5 -5 -4 -4 -4 -4 -4 -4 -4 -3 -3 -3 -3 -2 -2 -2 -2 -1 -1 ----------- Run | Yrd Mat Sub Rec Scr Fac Was Fac Low Low Dat Pro Fac Was Fac Upp Upp War Pro Fac Was Fac Upp Upp Zhi Pro Res Tes Gar Res Qua Sec Gar Acc Com Matter Collected 29793 | 290 186 140 . 99 388 . 494 587 2333 . 512 600 . 562 170 350 160 457 620 294 548 636 356 231 455 1103 758 855 986 1045 918 1038 241 12381 Remotely . | . . . . . . . . . . . . . . . . . . . . . . . . . . . . . . . . . . . Salvage Created 37958 | 127 338 239 116 . 336 . 1651 265 859 . 265 1710 . 702 1622 1504 . 1087 1229 213 1748 1223 1038 372 1132 2391 1464 850 1062 1027 2280 829 969 9310 Parts 1524 | 11 13 15 6 . 16 . 59 6 20 . 20 68 . 28 57 50 . 51 60 1 91 29 30 5 28 123 77 24 49 44 117 34 47 345 Haulers Intercepted 29 | . 1 . . . . . 5 . 1 . . 5 . 3 . . . . 3 . 4 . . . . 2 2 . 1 . . . 2 . Recyclers Shooed 9 | . 3 . . . . . 2 . . . . . . 1 . . . . . . . . . . . 1 1 . 1 . . . . . Parts Field Recycled . | . . . . . . . . . . . . . . . . . . . . . . . . . . . . . . . . . . . Retrieved Matter . | . . . . . . . . . . . . . . . . . . . . . . . . . . . . . . . . . . . Parts Self-Destructed 116 | . . . . . . . . 2 24 . 25 . . . 12 14 . 15 . . . 7 5 1 11 . . . . . . . . . Prevented 135 | . . . . . . . . 4 20 . 2 . . . 12 36 . 21 . . . 17 12 . 11 . . . . . . . . . Kills | -11 -10 -10 -8 -8 -6 -6 -6 -6 -6 -6 -5 -5 -5 -5 -5 -5 -5 -4 -4 -4 -4 -4 -4 -4 -3 -3 -3 -3 -2 -2 -2 -2 -1 -1 ------- Run | Yrd Mat Sub Rec Scr Fac Was Fac Low Low Dat Pro Fac Was Fac Upp Upp War Pro Fac Was Fac Upp Upp Zhi Pro Res Tes Gar Res Qua Sec Gar Acc Com Combat Hostiles Destroyed 638 | . 6 5 1 . 11 . 4 1 7 . 13 6 . 4 9 20 . 17 5 1 16 23 11 . 14 26 9 17 1 . 22 22 9 358 Melee 133 | . . . . . . . 2 . . . 1 2 . 4 2 1 . 4 5 . 2 . 1 . . 14 4 1 1 . 20 11 3 55 Guns 43 | . 6 5 1 . 11 . . 1 5 . 3 . . . . . . . . . . . . . . . . . . . . . . 11 Cannons 84 | . . . . . . . . . 2 . . . . . 3 12 . 5 . . . 5 4 . 3 . . . . . . . . 50 AOE 330 | . . . . . . . 1 . . . 9 2 . . . 1 . 4 . 1 14 12 2 . 8 12 5 16 . . 2 11 6 224 Classes Destroyed 30 | 3 2 1 1 . 2 . 3 3 1 . 2 1 . 1 . 1 . . . 1 2 . . . . . . . . . . . . 6 Worker 39 | 1 . . . . . . 6 . . . . 2 . . . . . . 2 . 8 . . . . 6 4 . 2 . 7 . 1 . Builder 13 | . . . . . . . 1 . . . . 1 . . . . . . . . 3 . . . . 4 . . . 2 2 . . . Tunneler 10 | 2 . . . . . . 1 . . . . 1 . 1 . . . . . . 2 . . . . 1 . . . . . . 2 . Hauler 29 | . 1 . . . . . 5 . 1 . . 5 . 3 . . . . 3 . 4 . . . . 2 2 . 1 . . . 2 . Recycler 35 | 1 . . 1 . . . 6 . . . . 4 . 1 . . . . 2 . 2 . . . . 4 2 . 4 4 1 . 1 2 Carrier 20 | . . . . . . . . . . . . . . . . . . . . . 2 . . . . . . . . . . . . 18 Minesweeper 6 | . . . . . . . . 1 1 . . . . . 1 1 . 1 . . . . 1 . . . . . . . . . . . Mechanic 1 | . . . . . . . . . . . . . . . . . . . . . 1 . . . . . . . . . . . . . Operator 10 | . . . . . . . 1 . . . . 2 . 2 . . . . 1 . . . 1 . . . . . 2 . 1 . . . Drone 2 | . . . . . . . . . . . 1 . . . . . . 1 . . . . . . . . . . . . . . . . Watcher 65 | . . . . . 1 . 2 . . . . 9 . . . . . . 6 . 7 . . . . 7 3 . 7 3 5 . 8 7 Swarmer 141 | . . . . . 8 . . . . . 10 . . 1 1 1 . 4 . . 4 4 2 . 6 4 5 7 . . . 11 6 67 Cutter 12 | . . . . . . . . . . . . . . . . . . . . . . . . . . . . . . . . . . 12 Saboteur 12 | . . . . . . . . . . . . . . . . . . . . . . . . . . . . . . . . . . 12 Grunt 180 | . 6 . . . 3 . 1 . 5 . 1 . . 2 5 7 . 8 . . 3 14 3 . 2 13 3 4 . . 7 5 . 88 Brawler 29 | . . . . . . . . . . . 1 . . . . 2 . . . . . 2 . . 1 . . . . . . . . 23 Duelist 25 | . . . . . . . . . 2 . . . . . . 4 . . . . . . . . . . . 1 . . . . . 18 Protector 9 | . . . . . . . . . . . . . . . . . . . . . . . . . . . . . . . . . . 9 Sentry 25 | . . . . . . . . 1 . . . . . . 1 2 . 1 1 . 1 2 2 . 2 3 . 1 1 . 2 3 . 2 Demolisher 12 | . . . . . . . . . . . . . . . . . . . . . . . . . . . . . . . . . . 12 Specialist 24 | . . . . . . . . . . . . . . . . 2 . . . . 3 . . . . . . . . . . . . 19 Hunter 67 | . . . . . . . 2 . . . . 2 . . . 1 . 2 . . 3 . . . 2 2 . 3 . . 4 2 . 44 Programmer 71 | . . . 1 . . . 1 . . . . 3 . . 2 1 . . 4 . 2 . . . . 4 1 . . . 9 . 3 40 Heavy 1 | . . . . . . . . . . . . . . . . . . . . . . . . . . . . . . . . . . 1 Behemoth 11 | . . . . . . . . . . . . 1 . . . . . 1 . . . 1 1 . 1 . . 2 . . . 1 . 3 Compactor 1 | . . . . . . . . . . . . . . . . . . . . 1 . . . . . . . . . . . . . . M Guard 2 | . . . . . . . . . . . . . . . . . . . . . . . . . . . . . . . . . . 2 Combat Programmer 2 | . . . . . . . . . . . . . . . . . . . . . . . . . . . . . . . . . . 2 Alpha 7 1 | . . . . . . . . . . . . . . . . . . . . . . . . . . . . . . . . . . 1 Subdweller 5 | . . 5 . . . . . . . . . . . . . . . . . . . . . . . . . . . . . . . . Scrapoid 1 | . . . . . . . . . . . . . . 1 . . . . . . . . . . . . . . . . . . . . Decomposer 15 | . . . . . . . . 4 1 . . . . . 5 2 . . . . . 2 1 . . . . . . . . . . . Packrat 12 | . . . . . . . . . . . . . . . . . . . . . . 3 3 . 6 . . . . . . . . . Samaritan 14 | . . . . . . . . 1 4 . . . . . 4 2 . 2 . . . . 1 . . . . . . . . . . . Wasp 1 | . . . . . . . . . . . . . . . . . . . . 1 . . . . . . . . . . . . . . Thug 4 | . . . . . . . . . . . . . . . . . . . . . . . 3 . . . . . . . . . . 1 Butcher 1 | . . . . . . . . . . . . . . . . . . . . . . . . . . . . . . . . . . 1 Best Kill Streak 188 | 2 2 2 2 . 4 . 7 1 1 . 4 4 . 2 2 3 . 4 3 1 9 7 2 . 5 11 7 4 2 2 5 6 7 188 Combat Bots Only 169 | . 2 2 1 . 4 . 3 1 1 . 4 2 . 1 2 2 . 4 2 1 4 7 2 . 5 4 5 4 1 . 4 6 7 169 Max Kills in Single Turn 188 | 1 1 1 1 . 2 . 7 1 1 . 4 2 . 1 1 1 . 3 1 1 5 3 1 . 2 4 5 3 1 1 3 3 6 188 Gunslinging 1 | . . . . . 1 . . . . . . . . . . . . . . . . . . . . . . . . . . . . . Exploded 169 | . . . . . . . 1 . . . 4 2 . . . 1 . 3 . 1 4 3 1 . 2 3 5 3 . . 1 3 6 169 Melee 1 | . . . . . . . 1 . . . 1 1 . 1 1 1 . 1 1 . 1 . 1 . . 1 1 1 1 . 1 1 1 1 Uniques/NPCs Destroyed 1 | . . . . . . . . . . . . . . . . . . . . . . . . . . . . . . . . . . 1 MAIN.C Shell (-1/Command) Combat | -11 -10 -10 -8 -8 -6 -6 -6 -6 -6 -6 -5 -5 -5 -5 -5 -5 -5 -4 -4 -4 -4 -4 -4 -4 -3 -3 -3 -3 -2 -2 -2 -2 -1 -1 -------- Run | Yrd Mat Sub Rec Scr Fac Was Fac Low Low Dat Pro Fac Was Fac Upp Upp War Pro Fac Was Fac Upp Upp Zhi Pro Res Tes Gar Res Qua Sec Gar Acc Com Hostile Shots Fired 1506 | . 75 35 2 . 162 1 49 . 1 . 12 28 . 7 2 3 . 18 18 . 9 . 18 . 3 181 7 28 7 9 123 80 29 599 Missed 582 | . 19 8 1 . 45 . 20 . 1 . 6 13 . 3 1 . . 7 6 . 2 . 6 . 2 53 3 14 1 4 61 54 10 242 Intercepted 3 | . . . . . . . . . . . . . . . . . . . . . . . . . . . . . . . . . . 3 Damage Taken 19898 | . 736 535 15 . 1801 47 595 . 6 . 108 424 . 148 19 49 . 207 400 24 160 . 260 42 . 2010 206 395 151 151 1233 632 192 9352 Core 2798 | . 177 56 . . 337 47 89 . . . . 48 . . . 17 . 16 18 24 24 . 42 . . 269 105 30 . 25 35 21 10 1408 Absorbed by Shields 1777 | . . . . . . . . . . . . . . . . . . . . . . . . . . . . . . . . . . 1777 Redirected to Shielding 1392 | . . . . . 62 . . . . . . . . . . . . . . . . . 58 . . 153 17 38 . 37 177 101 44 705 Ignored by Resistances 4952 | . . . . . . . . . . . . . . . . . . . . . . . . . . 692 23 . . . 534 . 383 3320 Regen/Repaired (Parts) 5624 | . . . . 166 . . 133 . . . . 70 . 75 . . 8 . 4 149 183 . . . . 376 365 . 131 69 1159 297 340 2099 Core Remaining (%) 60 | 100 . . . 6 . . . . . . 44 . . . . . . 91 . . . . . . 81 . . 68 . . . 84 . 11 Volleys Fired 2183 | 5 52 30 3 . 32 . 5 12 154 . 74 9 . 7 45 91 4 59 13 9 13 118 138 3 69 23 6 40 47 5 24 52 16 1025 Largest 2 | 2 2 2 2 . 2 . 1 1 2 . 2 1 . 1 1 1 1 1 1 1 1 1 1 1 1 1 1 1 1 1 1 1 1 1 Hottest 120 | 40 60 120 88 . 108 . 35 35 60 . 63 35 . 35 81 81 81 100 35 46 46 100 100 81 81 105 105 55 120 120 120 100 120 120 Shots Fired 2308 | 10 104 53 6 . 64 . 5 12 163 . 75 9 . 7 45 91 4 59 13 9 13 118 138 3 69 23 6 40 47 5 24 52 16 1025 Gun 669 | 10 104 53 6 . 64 . . 5 117 . 42 . . . . . . . . . . . 30 . . . 3 13 26 . . 8 . 188 Cannon 1197 | . . . . . . . 5 7 46 . 27 9 . 7 45 89 4 56 13 . . 102 107 1 52 10 2 . 21 5 15 . 15 559 Launcher 421 | . . . . . . . . . . . 6 . . . . . . 3 . 9 13 16 1 . 17 13 1 27 . . 9 44 1 261 Special 21 | . . . . . . . . . . . . . . . . 2 . . . . . . . 2 . . . . . . . . . 17 Kinetic 793 | 10 85 21 3 . 32 . . 5 117 . 42 . . . . . . . . . . . 30 . . . . . . . . . . 448 Thermal 580 | . 19 32 3 . 31 . 5 7 46 . 27 9 . 7 1 13 . 14 13 . . 39 46 . 20 8 2 . 21 5 15 . 15 182 Explosive 420 | . . . . . . . . . . . 6 . . . . . . 3 . 9 13 16 1 . 17 13 1 27 . . 9 44 1 260 Electromagnetic 456 | . . . . . 1 . . . . . . . . . 44 76 4 39 . . . 51 46 1 32 2 3 13 26 . . . . 118 Slashing 8 | . . . . . . . . . . . . . . . . . . . . . . . . . . . . . . . . 8 . . Entropic 30 | . . . . . . . . . . . . . . . . . . 3 . . . 12 15 . . . . . . . . . . . Robot Hit Streak 30 | 3 8 30 13 . 8 . . 2 7 . 7 . . . 4 11 6 6 . 12 . 16 8 3 6 3 1 5 2 . . 9 . 12 Robot Miss Streak 13 | 3 3 1 1 . 5 . . 1 4 . 2 . . . 4 4 2 5 . . . 4 4 . 3 . 1 2 1 . . 2 . 13 Penetration Max 1 | . . . . . . . . . . . 1 . . . . . . . . . . . . . . . . . . . . . . . Secondary Targets 2 | . . . . . 2 . . . . . . . . . . . . . . . . . . . . . . . . . . . . . Max Gunslinging Chain 1 | . . . . . 1 . . . . . . . . . . . . . . . . . . . . . . . . . . . . . Capacitor 69 | . . . . . . . . . . . . . . . . . . . . . . . . . . . . . . . . . . 69 Shots Hit Robots 1761 | 5 64 42 3 . 45 . 27 16 77 1 27 60 . 30 55 63 6 39 48 7 36 41 57 11 22 75 54 22 51 40 82 37 28 590 Core Hits 1259 | 6 19 12 2 . 31 . 18 8 24 . 22 20 . 13 29 29 1 25 20 4 56 45 19 3 24 67 32 45 27 9 53 39 18 539 Critical Kills 34 | . . . . . . . . . 1 . . . . . . . . . . . . . . . . . . . . . . . . 33 Critical Parts Destroyed 43 | . . . . . . . 4 . 1 . 1 6 . . . . . . . . . . . . . . . . . . . . . 31 Critical Strikes 172 | . . . . . . . 8 1 2 . 1 10 . 3 5 4 . 8 4 . 3 1 5 . . 8 2 . 5 1 8 1 . 92 Burn 7 | . . . . . . . . . . . . . . . . . . . . . . . . . . . . . . . . . . 7 Destroy 66 | . . . . . . . . . 1 . 1 . . . . . . . . . . . . . . . . . . . . . . 64 Corrupt 10 | . . . . . . . . . . . . . . . 1 2 . 1 . . . 1 1 . . . . . . . . . . 4 Smash 15 | . . . . . . . 4 . 1 . . 6 . . . . . . . . . . . . . . . . . . . . . 4 Sever 31 | . . . . . . . . . . . . 1 . 1 . . . 2 1 . 1 . 1 . . 1 . . 1 . 8 1 . 13 Impale 38 | . . . . . . . 4 1 . . . 3 . 2 4 2 . 3 3 . 2 . . . . 7 2 . 4 1 . . . . Sunder 5 | . . . . . . . . . . . . . . . . . . 2 . . . . 3 . . . . . . . . . . . Melee Attacks 1744 | . . 5 . . 2 . 59 22 44 1 3 116 . 54 63 25 5 23 113 . 75 12 22 10 7 122 80 20 122 78 153 55 91 362 Kinetic 1 | . . . . . . . . . . . . . . . . . . . . . . . . . . . . . . 1 . . . . Impact 140 | . . . . . . . 23 11 38 . 3 46 . . . . . . . . . . . . . . . . . . . . . 19 Slashing 853 | . . 5 . . 1 . . . . . . 12 . 23 40 . . 8 43 . 14 4 8 1 4 19 3 6 14 37 139 48 90 334 Piercing 637 | . . . . . 1 . 36 11 . . . 57 . 29 23 16 1 15 62 . 61 8 14 9 3 103 65 12 91 20 . . . . Sneak Attacks 287 | . . . . . . . 14 7 13 1 1 18 . 13 11 15 4 5 18 . 17 5 7 . 6 14 21 2 24 26 20 6 7 12 Combat Hostiles 37 | . . . . . . . . . 1 . 1 2 . 2 1 1 . 2 4 . 1 . . . . . 2 1 2 . 3 4 . 10 Follow-up Attacks 99 | . . . . . . . 1 . . . . . . 4 . . . 2 3 . 4 . 1 1 . 11 1 1 4 . . . 6 60 Damage Inflicted 376513 | 66 660 597 64 . 863 . 2456 912 2352 . 1396 3624 . 1746 4166 2197 59 2211 2297 1351 5778 4611 2795 708 2719 7022 4116 4753 2277 2192 8788 5260 3618 294859 Guns 6131 | 66 660 550 64 . 855 . . 40 1025 . 543 . . . . . . . . . . . 36 . . . 2 14 21 . . 125 . 2130 Cannons 13854 | . . . . . . . . 63 124 . . . . . 720 1511 59 1067 . . . 1996 1679 . 539 37 . . . . . . . 6059 Explosions 284987 | . . . . . . . 1085 . . . 722 166 . . 171 138 . 372 . 1351 3372 2151 253 . 1610 2972 713 3938 103 . 1882 3189 570 260229 Melee 71519 | . . 42 . . . . 1371 809 1203 . 131 3449 . 1746 3275 548 . 772 2297 . 2406 464 827 708 570 4013 3401 801 2153 2192 6906 1946 3048 26441 Ramming 22 | . . 5 . . 8 . . . . . . 9 . . . . . . . . . . . . . . . . . . . . . . Kinetic 5892 | 66 527 219 . . 303 . . 40 1025 . 543 . . . . . . . . . . . 36 . . . . . . . . . . 3133 Thermal 246531 | . 133 331 64 . 552 . 1085 63 124 . . . . . 171 138 . . . . 1775 . 58 . . 37 . 66 103 . . . . 241831 Explosive 41648 | . . . . . . . . . . . 722 166 . . . . . 372 . 1351 1597 2151 77 . 1610 2972 713 3872 . . 1882 3189 570 20404 Electromagnetic 8751 | . . . . . . . . . . . . . . . 720 1511 59 807 . . . 1125 903 . 539 . 2 14 21 . . . . 3050 Impact 5300 | . . . . . . . 531 546 1203 . 131 2017 . . . . . . . . . . . . . . . . . . . . . 872 Slashing 45574 | . . 42 . . . . . . . . . 224 . 740 1939 . . 357 770 . 337 102 206 61 397 461 138 450 395 1361 6906 2071 3048 25569 Piercing 20770 | . . . . . . . 840 263 . . . 1208 . 1006 1336 548 . 415 1527 . 2069 362 621 647 173 3552 3263 351 1758 831 . . . . Entropic 2025 | . . . . . . . . . . . . . . . . . . 260 . . . 871 894 . . . . . . . . . . . Highest Corruption 7 | . . . . . . 5 7 7 . . . 1 1 1 . . . 3 . . . . . . . 4 . . . . 1 . . . Average Corruption 1 | . . . . . . 5 5 4 . . . 1 1 1 . . . 3 . . . . . . . 2 . . . . 1 . . . Corruption Purged 21 | . . . . . . . 7 7 . . . . . 2 . . . . . . . . . . . 4 . . . . 1 . . . Corruption Blocked 10 | . . . . . . . . . . . . 5 5 . . . . . . . . . . . . . . . . . . . . . Effects 52 | . . . . . . 1 17 3 . . . 8 1 9 . . . . . . . . . . . 10 . . . . 3 . . . Message Errors 10 | . . . . . . 1 2 . . . . 2 1 2 . . . . . . . . . . . 1 . . . . 1 . . . Matter Fused 13 | . . . . . . . 5 2 . . . . . 4 . . . . . . . . . . . 2 . . . . . . . . Heat Flow Errors 6 | . . . . . . . 3 . . . . . . 1 . . . . . . . . . . . 1 . . . . 1 . . . Energy Discharges 7 | . . . . . . . 3 . . . . . . 1 . . . . . . . . . . . 2 . . . . 1 . . . Parts Rejected 1 | . . . . . . . . . . . . 1 . . . . . . . . . . . . . . . . . . . . . . Parts Fused 1 | . . . . . . . . . . . . . . . . . . . . . . . . . . 1 . . . . . . . . Data Loss (minor) 6 | . . . . . . . 3 1 . . . 1 . . . . . . . . . . . . . 1 . . . . . . . . Data Loss (major) 1 | . . . . . . . . . . . . . . . . . . . . . . . . . . 1 . . . . . . . . Alerts 7 | . . . . . . . 1 . . . . 4 . 1 . . . . . . . . . . . 1 . . . . . . . . Overload Shots . | . . . . . . . . . . . . . . . . . . . . . . . . . . . . . . . . . . . Overflow Damage 39876 | . . . . . . . 783 197 777 . 101 1096 . 208 1329 178 . 343 162 . 472 324 183 133 279 741 697 233 279 617 863 287 1032 28562 Projectiles 152 | . . . . . . . . 8 . . . . . . . 10 . . . . . 38 14 . . . . . . . . . . 82 Explosions 26393 | . . . . . . . 352 . . . . 8 . . . 12 . 11 . . 186 70 . . 24 215 103 158 . . 95 95 24 25040 Melee 13331 | . . . . . . . 431 189 777 . 101 1088 . 208 1329 156 . 332 162 . 286 216 169 133 255 526 594 75 279 617 768 192 1008 3440 Knockbacks 21 | . . . . . . . 3 . 4 . . 7 . . . . . . . . . . . . . . . . . . . . . 7 Impact 19 | . . . . . . . 2 . 4 . . 7 . . . . . . . . . . . . . . . . . . . . . 6 Kinetic 1 | . . . . . . . . . . . . . . . . . . . . . . . . . . . . . . . . . . 1 Secondary 1 | . . . . . . . 1 . . . . . . . . . . . . . . . . . . . . . . . . . . . Self-Inflicted Damage 458 | . . . . . . . . . . . . 4 . . . . . 9 . . . . . . . . 38 94 . . . 4 . 309 Shots 5 | . . . . . . . . . . . . . . . . . . 1 . . . . . . . . 1 1 . . . 1 . 1 Rammed 4 | . . 1 . . 1 . . . . . . 1 . . . . . . . . . . . . . . . . . . . . . 1 Targets Rammed 4 | . . 1 . . 1 . . . . . . 1 . . . . . . . . . . . . . . . . . . . . . 1 Kicked . | . . . . . . . . . . . . . . . . . . . . . . . . . . . . . . . . . . . Crushed . | . . . . . . . . . . . . . . . . . . . . . . . . . . . . . . . . . . . Highest Temperature 275 | . 275 . 52 . 153 . 186 7 44 . 22 . . 255 68 120 80 78 . 10 5 80 150 34 120 236 184 98 228 . 148 190 248 275 Average Temperature 34 | . 73 . 32 . 80 . 77 4 8 . 5 . . 131 24 37 41 27 . 7 3 23 28 12 30 63 35 11 72 . 53 58 81 29 Received Heat Transfer 1626 | . 462 114 . . 99 . 27 . . . 27 12 . 9 . . . 27 . . 30 . 63 12 . 337 24 48 9 . 81 72 12 161 Effects 1 | . . . . . . . . . . . . . . . . . . . . . . . . . . 1 . . . . . . . . Energy Bleed 1 | . . . . . . . . . . . . . . . . . . . . . . . . . . 1 . . . . . . . . Siege Activations . | . . . . . . . . . . . . . . . . . . . . . . . . . . . . . . . . . . . Robots Corrupted 69 | . . . . . . . 7 . 7 . . 11 . . 4 6 . 4 . . . 6 4 . 3 . . . . . . . . 17 Combat Hostiles 49 | . . . . . . . 1 . 2 . . 2 . . 4 6 . 4 . . . 6 4 . 3 . . . . . . . . 17 Parts Fried 95 | . . . . . . . 12 . 8 . . 8 . . 8 11 . 5 . . . 9 10 . 5 . . . . . . . 1 18 Impact Corruptions 104 | . . . . . . . 13 5 47 . 1 31 . . . . . . . . . . . . . . . . . . . . . 7 Robots Melted 1 | . . . . . . . . . . . . . . . . . . . . . . . . . . . . . . . . . . 1 Combat Hostiles 1 | . . . . . . . . . . . . . . . . . . . . . . . . . . . . . . . . . . 1 Parts Melted 14 | . 1 1 . . 3 . . . . . . . . 1 . 3 . . . . . . . . . . . . . . . . . 5 Heat Transferred 8320 | . 300 600 75 . 1250 . 700 100 200 . . . . . 150 150 . . . . 1000 . 50 . . 50 . 50 50 . . . . 3595 Parts Sabotaged . | . . . . . . . . . . . . . . . . . . . . . . . . . . . . . . . . . . . Parts Stolen . | . . . . . . . . . . . . . . . . . . . . . . . . . . . . . . . . . . . Parts Stripped 13 | . . . . . . . . . . . . . . . . . . . . . . . . . . . . . . 13 . . . . Power Chain Reactions 9 | . . . . . . . . . . . . . . . 2 1 . . . . . . 2 . . . . 1 1 . . . . 2 Alert | -11 -10 -10 -8 -8 -6 -6 -6 -6 -6 -6 -5 -5 -5 -5 -5 -5 -5 -4 -4 -4 -4 -4 -4 -4 -3 -3 -3 -3 -2 -2 -2 -2 -1 -1 ------- Run | Yrd Mat Sub Rec Scr Fac Was Fac Low Low Dat Pro Fac Was Fac Upp Upp War Pro Fac Was Fac Upp Upp Zhi Pro Res Tes Gar Res Qua Sec Gar Acc Com Peak Influence 1736 | 20 173 . 32 . 349 50 374 . . . . 431 158 935 . . . . 637 318 977 . . . . 597 474 1302 815 303 498 1736 687 534 Initial 732 | . 13 . 7 . . 35 28 . . . . 225 128 110 . . . . 182 195 222 . . . . 123 329 180 732 202 . 365 681 157 Average 310 | 7 66 . 28 . 86 37 194 . . . . 205 146 498 . . . . 269 291 386 . . . . 255 173 861 348 118 257 1171 306 280 Maximum Alert Level 5 | . . . . . 1 . 1 . . . . 2 . 3 . . . . 2 1 3 . . . . 2 2 4 3 1 2 5 2 5 Low Security (%) 20 | 100 100 . 100 . 79 100 47 . . . . 50 100 12 . . . . 44 10 5 . . . . 50 71 5 8 73 33 . 1 3 Level 1 23 | . . . . . 20 . 52 . . . . 42 . 17 . . . . 31 89 52 . . . . 28 22 3 80 26 48 2 89 3 Level 2 8 | . . . . . . . . . . . . 7 . 46 . . . . 24 . 35 . . . . 21 5 18 . . 18 17 9 2 Level 3 2 | . . . . . . . . . . . . . . 23 . . . . . . 6 . . . . . . 45 11 . . 15 . . Level 4 1 | . . . . . . . . . . . . . . . . . . . . . . . . . . . . 26 . . . 38 . . Level 5 43 | . . . . . . . . . . . . . . . . . . . . . . . . . . . . . . . . 25 . 90 High Security . | . . . . . . . . . . . . . . . . . . . . . . . . . . . . . . . . . . . Max Security . | . . . . . . . . . . . . . . . . . . . . . . . . . . . . . . . . . . . Squads Dispatched 111 | . 1 . . . 4 . 5 . . . . 9 . 11 . . . . 13 . 8 . . . . 13 6 . 7 4 9 . 9 12 Investigation 50 | . 1 . . . 3 . 2 . . . . 5 . 5 . . . . 8 . 4 . . . . 4 3 . 2 2 2 . 4 5 Extermination 33 | . . . . . 1 . 2 . . . . 2 . 1 . . . . 2 . 2 . . . . 3 2 . 3 2 6 . 3 4 Reinforcement 23 | . . . . . . . 1 . . . . 2 . 4 . . . . 2 . . . . . . 6 1 . 2 . 1 . 2 2 Assault 5 | . . . . . . . . . . . . . . 1 . . . . 1 . 2 . . . . . . . . . . . . 1 Garrison . | . . . . . . . . . . . . . . . . . . . . . . . . . . . . . . . . . . . Intercept . | . . . . . . . . . . . . . . . . . . . . . . . . . . . . . . . . . . . Searches Triggered . | . . . . . . . . . . . . . . . . . . . . . . . . . . . . . . . . . . . Data Miner Redirects 1 | . . . . . . . . . . . . . . 1 . . . . . . . . . . . . . . . . . . . . Construction Impeded 4 | . . . . . . . . . . . . 1 . 2 . . . . . . . . . . . 1 . . . . . . . . Haulers Reinforced 9 | . . . . . . . 1 . . . . 1 . 1 . . . . 1 . . . . . . 1 . . 1 . 1 . 2 . Active Scanning Responses . | . . . . . . . . . . . . . . . . . . . . . . . . . . . . . . . . . . . Cargo Convoy Interrupts 2 | . . . . . . . . . . . . . . . . . . . . . 1 . . . . 1 . . . . . . . . Stealth | -11 -10 -10 -8 -8 -6 -6 -6 -6 -6 -6 -5 -5 -5 -5 -5 -5 -5 -4 -4 -4 -4 -4 -4 -4 -3 -3 -3 -3 -2 -2 -2 -2 -1 -1 --------- Run | Yrd Mat Sub Rec Scr Fac Was Fac Low Low Dat Pro Fac Was Fac Upp Upp War Pro Fac Was Fac Upp Upp Zhi Pro Res Tes Gar Res Qua Sec Gar Acc Com Distress Signals 11 | . . . 1 . . . 1 . . . . . . . . . 1 . . . . . . . . 1 . . 1 1 2 . . 3 Communications Jammed 139 | . . . . . . . . . . . . 2 . . . . . 2 . . . . . . . 20 1 . 4 . 35 . 55 20 Distress Signals 128 | . . . . . . . . . . . . 2 . . . . . . . . . . . . . 20 1 . 4 . 30 . 55 16 Times Spotted 753 | . 10 7 1 . 28 4 13 3 47 . 15 20 5 13 29 34 5 28 14 8 23 33 17 3 11 44 13 11 19 10 39 28 15 203 Peak Tracking Total 11 | . 2 3 1 . 4 5 4 1 6 . 9 3 5 3 5 9 11 4 3 6 7 8 5 3 4 10 5 3 3 2 4 7 2 6 Tactical Retreats 270 | . 1 1 . . 5 . 3 1 25 . 8 1 . . 14 23 2 15 2 1 . 30 28 . 10 3 . 2 1 2 4 7 . 81 Traps | -11 -10 -10 -8 -8 -6 -6 -6 -6 -6 -6 -5 -5 -5 -5 -5 -5 -5 -4 -4 -4 -4 -4 -4 -4 -3 -3 -3 -3 -2 -2 -2 -2 -1 -1 ------- Run | Yrd Mat Sub Rec Scr Fac Was Fac Low Low Dat Pro Fac Was Fac Upp Upp War Pro Fac Was Fac Upp Upp Zhi Pro Res Tes Gar Res Qua Sec Gar Acc Com Traps Triggered 42 | . . . . . 1 . 4 . . . . 1 . 4 . . . . 5 . 2 . . . . 1 2 . 1 2 . 1 1 17 Indirectly . | . . . . . . . . . . . . . . . . . . . . . . . . . . . . . . . . . . . Trap Hack Attempts 198 | . . . . . . . 29 . . . . 40 . . . . . . 29 . . . . . . . 22 . 8 9 . . . 61 Triggered 1 | . . . . . . . . . . . . 1 . . . . . . . . . . . . . . . . . . . . . . Disarmed 13 | . . . . . . . . . . . . . . . . . . . . . 10 . . . . . 2 . . . . . . 1 Reprogrammed 109 | . . . . . . . 1 . . . . 12 . . . . . . 2 . . . . . . 6 16 . 16 4 10 . 20 22 Reused 77 | . . . . . 1 1 . 4 8 . . 3 . . 8 8 . . . . . . 2 . . 6 10 . 11 1 3 . 8 3 Traps Extracted . | . . . . . . . . . . . . . . . . . . . . . . . . . . . . . . . . . . . Installed 40 | . . . . . 1 1 . 6 10 . . . . . 8 11 . 1 . . . . 2 . . . . . . . . . . . Triggered 88 | . . . . . 1 . . 4 11 . . 3 . . 10 8 3 1 . . . 1 2 . . 8 10 . 11 1 3 . 8 3 Most Traps Carried 3 | . . . . 3 3 1 . 3 3 . . . . . 2 3 . 1 . . . . 2 . . . . . . . . . . . Time Bombs Activated 1 | . . . . . . . . . . . . . . . . . . . . . . . . . . . . . . . . . . 1 Exploded 1 | . . . . . . . . . . . . . . . . . . . . . . . . . . . . . . . . . . 1 Machines | -11 -10 -10 -8 -8 -6 -6 -6 -6 -6 -6 -5 -5 -5 -5 -5 -5 -5 -4 -4 -4 -4 -4 -4 -4 -3 -3 -3 -3 -2 -2 -2 -2 -1 -1 ---------- Run | Yrd Mat Sub Rec Scr Fac Was Fac Low Low Dat Pro Fac Was Fac Upp Upp War Pro Fac Was Fac Upp Upp Zhi Pro Res Tes Gar Res Qua Sec Gar Acc Com Machines Disabled 111 | . . . . . 1 . 9 1 . . . 6 . 10 . 3 . . 6 . 8 1 6 1 1 1 6 4 4 5 11 4 1 22 Max in Single Turn 5 | . . . . . 1 . 5 1 . . . 2 . 1 . 1 . . 1 . 3 1 1 1 1 1 2 2 3 1 1 1 1 4 Garrison Access 17 | . . . . . . . . . . . . 2 . 1 . . . . 1 . 3 . . . . 2 . . 3 1 . . 4 . Garrison Relay 4 | . . . . . . . . . . . . . . . . . . . . . . . . . . . . 2 . . . 2 . . Phase Generator 2 | . . . . . . . . . . . . . . . . . . . . . . . . . . . . 1 . . . . . 1 Machines Repaired . | . . . . . . . . . . . . . . . . . . . . . . . . . . . . . . . . . . . Machines Dismantled . | . . . . . . . . . . . . . . . . . . . . . . . . . . . . . . . . . . . Machines Sabotaged . | . . . . . . . . . . . . . . . . . . . . . . . . . . . . . . . . . . . Overloaded Fab Kills . | . . . . . . . . . . . . . . . . . . . . . . . . . . . . . . . . . . . Hacking | -11 -10 -10 -8 -8 -6 -6 -6 -6 -6 -6 -5 -5 -5 -5 -5 -5 -5 -4 -4 -4 -4 -4 -4 -4 -3 -3 -3 -3 -2 -2 -2 -2 -1 -1 --------- Run | Yrd Mat Sub Rec Scr Fac Was Fac Low Low Dat Pro Fac Was Fac Upp Upp War Pro Fac Was Fac Upp Upp Zhi Pro Res Tes Gar Res Qua Sec Gar Acc Com Machines Accessed 271 | . 2 . 1 7 8 . 16 1 . 4 . 26 . 16 2 1 2 . 22 . 25 1 2 5 . 20 14 1 22 13 20 3 21 16 Terminals 135 | . 1 . 1 . 3 . 8 . . . . 14 . 5 . . . . 10 . 10 . 1 . . 11 7 1 11 9 16 3 11 13 Fabricators 17 | . . . . . . . . . . . . 2 . . . . . . 2 . 4 . . . . 3 1 . 2 . . . 3 . Repair Stations 28 | . . . . . 1 . 3 . . . . 2 . 4 . . . . 3 . 3 . . . . 1 2 . 2 1 1 . 2 3 Recycling Units 27 | . 1 . . . 2 . 2 . . . . 4 . 5 . . . . 4 . 4 . . . . 1 . . 3 . . . 1 . Scanalyzers 22 | . . . . . 2 . 3 . . . . 2 . 1 . . . . 2 . 2 . . . . 2 3 . 1 2 2 . . . Garrison Access 18 | . . . . . . . . . . . . 2 . 1 . . . . 1 . 2 . . . . 2 1 . 3 1 1 . 4 . Total Hacks 1129 | . 3 . 4 33 21 . 40 1 . 32 . 76 . 32 6 1 5 . 80 . 108 1 8 17 . 82 77 10 108 51 81 15 110 127 Successful 788 | . 2 . 2 33 7 . 19 1 . 32 . 45 . 17 6 1 5 . 58 . 78 1 8 17 . 63 64 4 73 34 57 9 62 90 Failed 340 | . 1 . 2 . 14 . 21 . . . . 31 . 15 . . . . 22 . 30 . . . . 19 13 6 35 17 24 6 48 36 Catastrophic 34 | . 1 . . . 2 . 2 . . . . 4 . 3 . . . . 1 . 2 . . . . 2 . . 1 2 2 3 5 4 Database Lockouts 1 | . . . . . . . . . . . . . . . . . . . . . . . . . . . . . . . . . . 1 Manual 466 | . 3 . . . 12 . 5 . . . . 30 . 6 . 1 1 . 34 . 53 . . . . 38 27 10 68 15 44 14 46 59 Terminals 627 | . 2 . 4 . 6 . 19 . . . . 43 . 6 . . . . 40 . 56 . 7 . . 48 36 10 74 38 61 15 75 87 Fabricators 78 | . . . . . . . . . . . . 4 . . . . . . 9 . 18 . . . . 14 6 . 11 . . . 16 . Repair Stations 135 | . . . . . 2 . 6 . . . . 10 . 9 . . . . 6 . 11 . . . . 6 15 . 5 3 12 . 10 40 Recycling Units 87 | . 1 . . . 8 . 7 . . . . 10 . 12 . . . . 11 . 13 . . . . 6 . . 14 . . . 5 . Scanalyzers 79 | . . . . . 5 . 8 . . . . 6 . 4 . . . . 13 . 7 . . . . 6 16 . 1 9 4 . . . Garrison Access 26 | . . . . . . . . . . . . 3 . 1 . . . . 1 . 3 . . . . 2 4 . 3 1 4 . 4 . Terminal Hacks 384 | . . . 2 33 . . 4 1 . 32 . 16 . 1 6 1 5 . 23 . 27 1 8 17 . 25 22 3 34 19 25 8 30 41 Record 62 | . . . . 32 . . . . . 11 . . . . 5 . . . . . . . 8 6 . . . . . . . . . . Part Schematic 37 | . . . . . . . 1 . . 11 . 2 . . . . . . 3 . 3 . . 3 . 5 1 . 1 2 . . . 5 Robot Schematic 10 | . . . . . . . . . . 7 . . . . . . . . . . . . . . . . . . 2 1 . . . . Robot Analysis 31 | . . . . . . . . . . . . 1 . . . . . . 5 . . . . 4 . . 3 . 5 . . . 2 11 Prototype ID Bank 33 | . . . 1 . . . . . . 3 . 2 . . . . 4 . 1 . 2 . . 4 . 2 . . 3 4 1 . 2 4 Open Door 10 | . . . . . . . . 1 . . . . . . 1 1 1 . . . . 1 . . . . . . . . 4 . . 1 Level Access Points 3 | . . . . . . . . . . . . . . . . . . . . . . . . . . 1 . . 1 . . . . 1 Branch Access Points 5 | . . . . . . . . . . . . . . . . . . . 1 . 1 . . . . 1 . . 1 . . . 1 . Emergency Access Points 2 | . . . . . . . . . . . . . . . . . . . . . 1 . . . . . . . . . . . . 1 Machine Index 5 | . . . . . . . . . . . . . . . . . . . 1 . . . . . . . 1 . 1 . . . 1 1 Terminal Index 5 | . . . . . . . . . . . . 1 . . . . . . . . 1 . . . . . . . . . 1 . 1 1 Fabricator Index 2 | . . . . . . . . . . . . . . . . . . . . . . . . . . . . . . 1 . . 1 . Repair Station Index 3 | . . . . . . . . . . . . . . . . . . . . . 1 . . . . . . . . . . . 1 1 Scanalyzer Index 2 | . . . . . . . . . . . . 1 . . . . . . . . 1 . . . . . . . . . . . . . Garrison Index 4 | . . . . . . . . . . . . 1 . . . . . . . . 1 . . . . . . . . . 1 . 1 . Alert Level 4 | . . . . . . . . . . . . . . . . . . . 1 . 1 . . . . . 2 . . . . . . . Unreport Threat 35 | . . . . . . . . . . . . 1 . . . . . . 1 . 4 . . . . 5 4 . 4 2 4 4 5 1 Locate Traps 30 | . . . . . . . 1 . . . . . . . . . . . 4 . 3 . . . . 3 4 . 3 3 3 . 2 4 Disarm Traps 3 | . . . . . . . . . . . . . . . . . . . . . 2 . . . . . 1 . . . . . . . Reprogram Traps 16 | . . . . . . . . . . . . 2 . . . . . . . . . . . . . 1 2 . 3 . 3 . 4 1 Dispatch Records 3 | . . . . . . . . . . . . . . . . . . . . . . . . . . . 1 . . . . . . 2 Maintenance Status 2 | . . . . . . . . . . . . . . . . . . . . . . . . . . . . . . . . . 1 1 Security Status 1 | . . . . . . . . . . . . . . . . . . . . . . . . . . . . . 1 . . . . . Surveillance Status 5 | . . . . . . . . . . . . . . . . . . . 1 . . . . . . . . . . 1 1 . 1 1 Patrol Status 1 | . . . . . . . . . . . . . . . . . . . . . . . . . . . . . . . 1 . . . Transport Status 1 | . . . . . . . . . . . . 1 . . . . . . . . . . . . . . . . . . . . . . Reinforcement Status 1 | . . . . . . . . . . . . . . . . . . . . . . . . . . . . . . . . . 1 . Recall Investigation 9 | . . . . . . . . . . . . . . . . . . . 1 . 2 . . . . 1 . . 2 1 1 . 1 . Recall Extermination 12 | . . . . . . . . . . . . 1 . . . . . . . . . . . . . 2 1 . 2 2 3 . 1 . Recall Reinforcements 3 | . . . . . . . . . . . . . . . . . . . . . . . . . . . 1 . 1 . . . 1 . Recall Assault 1 | . . . . . . . . . . . . . . . . . . . 1 . . . . . . . . . . . . . . . Hauler Manifests 16 | . . . 1 . . . 1 . . . . 1 . 1 . . . . 2 . 2 . . . . 2 1 . 2 1 1 . 1 . Registered Components 8 | . . . . . . . 1 . . . . 1 . . . . . . . . 1 . . . . 1 . . 1 1 . . 1 1 Registered Prototypes 8 | . . . . . . . . . . . . 1 . . . . . . 1 . 1 . . . . 1 . . 1 . 1 . 1 1 Zone Layout 1 | . . . . . . . . . . . . . . . . . . . . . . . . . . . . . . . . . . 1 Garrison Registry 2 | . . . . . . . . . . . . . . . . . . . . . . . . . . . . 1 . . . 1 . . Patrol Navigation 2 | . . . . . . . . . . . . . . . . . . . . . . . . . . . . 1 . . . 1 . . Security Stations 3 | . . . . . . . . . . . . . . . . . . . . . . . . . . . . 1 . . . 2 . . Derelict Proto ID Bank 1 | . . . . 1 . . . . . . . . . . . . . . . . . . . . . . . . . . . . . . Disengage Seal 2 | . . . . . . . . . . . . . . . . . . . . . . . . . . . . . . . . . . 2 Fabricator Hacks 33 | . . . . . . . . . . . . 3 . . . . . . 4 . 7 . . . . 8 2 . 4 . . . 5 . Network Status 4 | . . . . . . . . . . . . 1 . . . . . . . . 1 . . . . 2 . . . . . . . . Load Schematic 15 | . . . . . . . . . . . . 1 . . . . . . 2 . 3 . . . . 3 1 . 2 . . . 3 . Build 14 | . . . . . . . . . . . . 1 . . . . . . 2 . 3 . . . . 3 1 . 2 . . . 2 . Repair Station Hacks 108 | . . . . . 1 . 6 . . . . 7 . 5 . . . . 3 . 7 . . . . 6 12 . 4 2 12 . 6 37 Scan Component 55 | . . . . . . . 3 . . . . 4 . 3 . . . . 2 . 4 . . . . 3 6 . 2 1 6 . 3 18 Repair 51 | . . . . . . . 3 . . . . 3 . 2 . . . . 1 . 3 . . . . 3 6 . 2 1 6 . 3 18 Refit 2 | . . . . . 1 . . . . . . . . . . . . . . . . . . . . . . . . . . . . 1 Recycling Unit Hacks 21 | . . . . . 1 . 2 . . . . 2 . 2 . . . . 4 . 4 . . . . 1 . . 4 . . . 1 . Retrieve Matter 1 | . . . . . . . . . . . . . . . . . . . . . . . . . . . . . 1 . . . . . Retrieve Components 20 | . . . . . 1 . 2 . . . . 2 . 2 . . . . 4 . 4 . . . . 1 . . 3 . . . 1 . Scanalyzer 60 | . . . . . 4 . 4 . . . . 6 . 4 . . . . 9 . 7 . . . . 6 11 . 1 6 2 . . . Insert Component 34 | . . . . . 2 . 2 . . . . 3 . 2 . . . . 4 . 3 . . . . 3 8 . 1 4 2 . . . Analyze 26 | . . . . . 2 . 2 . . . . 3 . 2 . . . . 5 . 4 . . . . 3 3 . . 2 . . . . Garrison Access Hacks 18 | . . . . . . . . . . . . 2 . 1 . . . . 1 . 2 . . . . 2 1 . 3 1 1 . 4 . Unlock Access 2 | . . . . . . . . . . . . . . . . . . . . . . . . . . . 1 . . . 1 . . . Seal Access 16 | . . . . . . . . . . . . 2 . 1 . . . . 1 . 2 . . . . 2 . . 3 1 . . 4 . Unauthorized Hacks 164 | . 2 . . . 1 . 3 . . . . 9 . 4 . . . . 14 . 24 . . . . 15 16 1 23 6 17 1 16 12 Terminals 79 | . 1 . . . . . 2 . . . . 5 . . . . . . 5 . 9 . . . . 6 7 1 10 4 12 1 4 12 Track 10 | . . . . . . . . . . . . . . . . . . . 1 . 1 . . . . . 1 . 2 . 2 . 1 2 Assimilate 25 | . . . . . . . 1 . . . . 2 . . . . . . . . 3 . . . . 3 3 . 4 3 6 . . . Botnet 29 | . 1 . . . . . 1 . . . . 2 . . . . . . 2 . 3 . . . . 2 2 1 3 . 1 1 2 8 Disrupt 4 | . . . . . . . . . . . . . . . . . . . . . . . . . . . . . . . 3 . . 1 Operators 11 | . . . . . . . . . . . . 1 . . . . . . 2 . 2 . . . . 1 1 . 1 1 . . 1 1 Fabricators 36 | . . . . . . . . . . . . 1 . . . . . . 4 . 8 . . . . 6 4 . 6 . . . 7 . Report 6 | . . . . . . . . . . . . . . . . . . . 1 . 1 . . . . 1 1 . 1 . . . 1 . Prioritize 13 | . . . . . . . . . . . . . . . . . . . 1 . 3 . . . . 3 1 . 2 . . . 3 . Liberate 9 | . . . . . . . . . . . . . . . . . . . 1 . 3 . . . . 1 1 . 1 . . . 2 . Haulers 8 | . . . . . . . . . . . . 1 . . . . . . 1 . 1 . . . . 1 1 . 2 . . . 1 . Repair Stations 14 | . . . . . 1 . 1 . . . . 3 . 4 . . . . 4 . . . . . . . . . . . . . 1 . Mechanics 1 | . . . . . . . . . . . . . . . . . . . . . . . . . . . . . . . . . 1 . Recycling Units 22 | . 1 . . . . . . . . . . . . . . . . . . . 7 . . . . 3 . . 7 . . . 4 . Monitor 4 | . . . . . . . . . . . . . . . . . . . . . 1 . . . . 1 . . 1 . . . 1 . Reject 7 | . . . . . . . . . . . . . . . . . . . . . 2 . . . . 1 . . 3 . . . 1 . Recyclers 4 | . . . . . . . . . . . . . . . . . . . . . 1 . . . . 1 . . 1 . . . 1 . Mask 6 | . . . . . . . . . . . . . . . . . . . . . 3 . . . . . . . 2 . . . 1 . Tunnel 1 | . 1 . . . . . . . . . . . . . . . . . . . . . . . . . . . . . . . . . Fedlink 8 | . . . . . 1 . 1 . . . . 2 . 1 . . . . 3 . . . . . . . . . . . . . . . Scrapoids 5 | . . . . . . . . . . . . 1 . 3 . . . . 1 . . . . . . . . . . . . . . . Scanalyzers 7 | . . . . . . . . . . . . . . . . . . . 1 . . . . . . . 2 . . 2 2 . . . Researchers 4 | . . . . . . . . . . . . . . . . . . . . . . . . . . . 1 . . 1 2 . . . Extract 3 | . . . . . . . . . . . . . . . . . . . 1 . . . . . . . 1 . . 1 . . . . Garrison Access 6 | . . . . . . . . . . . . . . . . . . . . . . . . . . . 3 . . . 3 . . . Broadcast 1 | . . . . . . . . . . . . . . . . . . . . . . . . . . . . . . . 1 . . . Decoy 1 | . . . . . . . . . . . . . . . . . . . . . . . . . . . 1 . . . . . . . Reprogram 2 | . . . . . . . . . . . . . . . . . . . . . . . . . . . 1 . . . 1 . . . Intercept 2 | . . . . . . . . . . . . . . . . . . . . . . . . . . . 1 . . . 1 . . . Data Cores Recovered 3 | . . . . . . . . . . . . . . 1 . . . . . . . . . . . . . . 1 . 1 . . . Used 1 | . . . . . . . . . . . . . . 1 . . . . . . . . . . . . . . . . . . . . Hacking Detections 202 | . 1 . 1 . 8 . 16 . . . . 22 . 13 . . . . 18 . 20 . 1 . . 17 13 1 17 10 12 3 16 13 Full Trace Events 26 | . . . . . 2 . . . . . . 2 . 1 . . . . 2 . 3 . . . . 3 1 . 2 . 2 . 4 4 Feedback Events 1 | . . . . . . . . . . . . 1 . . . . . . . . . . . . . . . . . . . . . . Hackware Fried 1 | . . . . . . . . . . . . 1 . . . . . . . . . . . . . . . . . . . . . . Feedback Blocked 1 | . . . . . . . . . . . . . . . . . . . . . . . . . . . . . . . . . . 1 Robot Schematics Acquired 17 | . . . . . . . . . . 7 . . . . . . . . . . . . . . . . 6 . 2 1 1 . . . Robots Built . | . . . . . . . . . . . . . . . . . . . . . . . . . . . . . . . . . . . Authchips . | . . . . . . . . . . . . . . . . . . . . . . . . . . . . . . . . . . . Time . | . . . . . . . . . . . . . . . . . . . . . . . . . . . . . . . . . . . Total Robot Build Rating . | . . . . . . . . . . . . . . . . . . . . . . . . . . . . . . . . . . . Part Schematics Acquired 193 | . . . . . 2 . 3 . . 11 . 4 . 2 . . . . 10 . 6 . . 3 . 8 25 . 1 101 12 . . 5 Parts Built 15 | . . . . . . . . . . . . 2 . . . . . . 2 . 3 . . . . 3 1 . 2 . . . 2 . Authchips . | . . . . . . . . . . . . . . . . . . . . . . . . . . . . . . . . . . . Time 814 | . . . . . . . . . . . . 35 . . . . . . 146 . 229 . . . . 161 51 . 130 . . . 62 . Total Part Build Rating 105 | . . . . . . . . . . . . 12 . . . . . . 13 . 21 . . . . 21 8 . 16 . . . 14 . Parts Repaired 51 | . . . . . . . 3 . . . . 3 . 2 . . . . 1 . 3 . . . . 3 6 . 2 1 6 . 3 18 Time 1873 | . . . . . . . 85 . . . . 100 . 151 . . . . 62 . 115 . . . . 132 237 . 134 36 156 . 84 581 Parts Recycled . | . . . . . . . . . . . . . . . . . . . . . . . . . . . . . . . . . . . Recycled Matter . | . . . . . . . . . . . . . . . . . . . . . . . . . . . . . . . . . . . Retrieved Matter . | . . . . . . . . . . . . . . . . . . . . . . . . . . . . . . . . . . . Retrieved Components 82 | . . . . . 2 . 3 . . . . 10 . 13 . . . . 20 . 15 . . . . 3 . . 15 . . . 1 . Parts Scanalyzed 23 | . . . . . 2 . 2 . . . . 3 . 2 . . . . 4 . 2 . . . . 3 3 . . 2 . . . . Part Schematics Acquired 21 | . . . . . 2 . 2 . . . . 3 . 2 . . . . 2 . 3 . . . . 3 2 . . 2 . . . . Parts Damaged 2 | . . . . . 1 . . . . . . . . . . . . . . . 1 . . . . . . . . . . . . . Bothacking | -11 -10 -10 -8 -8 -6 -6 -6 -6 -6 -6 -5 -5 -5 -5 -5 -5 -5 -4 -4 -4 -4 -4 -4 -4 -3 -3 -3 -3 -2 -2 -2 -2 -1 -1 ------------ Run | Yrd Mat Sub Rec Scr Fac Was Fac Low Low Dat Pro Fac Was Fac Upp Upp War Pro Fac Was Fac Upp Upp Zhi Pro Res Tes Gar Res Qua Sec Gar Acc Com Used RIF Installer 3 | . . . . . . . . . . . . . . . . . . . . . . . . . . . . 1 . . . 2 . . Coupler Efficiency 1 | . . . . . . . . . . . . . . . . . . . . . . . . . . . . . . . . 1 . . Watcher Feeds 1 | . . . . . . . . . . . . . . . . . . . . . . . . . . . . . . . . 1 . . Robots Hacked 65 | . . . . . . . . . 1 1 . . . 2 . 2 3 . 5 . . . . 2 . . 11 1 10 8 10 3 . 6 Non-combat 23 | . . . . . . . . . . . . . . . . . . . 5 . . . . . . . . . 10 2 3 . . 3 Combat 22 | . . . . . . . . . 1 1 . . . 2 . 2 3 . . . . . . 2 . . . 1 . 2 2 3 . 3 Robot Hacks Applied 62 | . . . . . . . . . 1 1 . . . 2 . 3 4 . 5 . . . . 2 . . . 1 12 14 7 3 . 7 parse_system 17 | . . . . . . . . . 1 1 . . . 2 . 3 4 . . . . . . 2 . . . 1 . . . . . 3 no_distress 1 | . . . . . . . . . . . . . . . . . . . . . . . . . . . . . 1 . . . . . find_chute 4 | . . . . . . . . . . . . . . . . . . . 4 . . . . . . . . . . . . . . . ignore_repairs 7 | . . . . . . . . . . . . . . . . . . . . . . . . . . . . . 1 2 4 . . . find_fabricator 1 | . . . . . . . . . . . . . . . . . . . . . . . . . . . . . 1 . . . . . drop_inventory 9 | . . . . . . . . . . . . . . . . . . . . . . . . . . . . . 9 . . . . . find_recycling 1 | . . . . . . . . . . . . . . . . . . . 1 . . . . . . . . . . . . . . . map_route 3 | . . . . . . . . . . . . . . . . . . . . . . . . . . . . . . . . . . 3 find_scanalyzer 1 | . . . . . . . . . . . . . . . . . . . . . . . . . . . . . . 1 . . . . disable_scanner 1 | . . . . . . . . . . . . . . . . . . . . . . . . . . . . . . 1 . . . . locate_prototypes 2 | . . . . . . . . . . . . . . . . . . . . . . . . . . . . . . . 2 . . . report_prototypes 1 | . . . . . . . . . . . . . . . . . . . . . . . . . . . . . . 1 . . . . report_schematics 9 | . . . . . . . . . . . . . . . . . . . . . . . . . . . . . . 8 1 . . . report_analyses 1 | . . . . . . . . . . . . . . . . . . . . . . . . . . . . . . 1 . . . . amplify_resonance 1 | . . . . . . . . . . . . . . . . . . . . . . . . . . . . . . . . . . 1 reboot_system 1 | . . . . . . . . . . . . . . . . . . . . . . . . . . . . . . . . 1 . . formatsys_high 2 | . . . . . . . . . . . . . . . . . . . . . . . . . . . . . . . . 2 . . Manual 24 | . . . . . . . . . . . . . . . . . . . . . . . . . . . 11 . . 6 7 . . . Relay Couplers Released 25 | . . . . . . . . . . . . . . . . . . . . . 7 . . . . . . 7 1 2 . 8 . . Machine Destruction 21 | . . . . . . . . . . . . . . . . . . . . . 3 . . . . . . 7 1 2 . 8 . . Programmers 4 | . . . . . . . . . . . . . . . . . . . . . 4 . . . . . . . . . . . . . Attached 7 | . . . . . . . . . . . . . . . . . . . . . . . . . . . . . 1 2 1 2 1 . Fabnet Peak Effective % . | . . . . . . . . . . . . . . . . . . . . . . . . . . . . . . . . . . . Robots Rewired 11 | . . . . . . . . . 3 . . . . . . 2 . . 1 . . 2 . . 1 . . 1 1 . . . . . Allies Hacked 6 | . . . . . . . . . . . . . . . . . . . 3 . 1 . . . . 1 . . . . . . 1 . Hacks Repelled . | . . . . . . . . . . . . . . . . . . . . . . . . . . . . . . . . . . . Allies | -11 -10 -10 -8 -8 -6 -6 -6 -6 -6 -6 -5 -5 -5 -5 -5 -5 -5 -4 -4 -4 -4 -4 -4 -4 -3 -3 -3 -3 -2 -2 -2 -2 -1 -1 -------- Run | Yrd Mat Sub Rec Scr Fac Was Fac Low Low Dat Pro Fac Was Fac Upp Upp War Pro Fac Was Fac Upp Upp Zhi Pro Res Tes Gar Res Qua Sec Gar Acc Com Total Allies 79 | . . . . . . . 1 . 3 . 1 5 . 15 . 2 . . 8 19 3 2 . . 1 2 3 1 2 2 3 4 2 . Largest Group 18 | . . . . . . . 1 1 3 3 3 3 . 6 1 3 3 . 5 18 16 3 3 . 1 2 3 2 3 2 2 2 2 . Highest-Rated Group 656 | . . . . . . . 10 10 94 94 99 141 . 282 47 107 107 . 235 656 606 88 88 . 48 69 138 112 154 90 71 142 142 . Highest-Rated Ally 99 | . . . . . . . 10 10 32 32 99 99 . 47 47 47 47 . 47 50 50 48 48 . 48 48 56 64 64 45 45 80 80 . Total Orders 206 | . . . . . . . . 5 12 1 32 . . 5 7 10 3 . 2 . 6 14 22 . 1 8 4 2 4 16 17 4 . 31 STAY 146 | . . . . . . . . 3 9 1 23 . . 3 5 7 1 . 1 . 5 10 17 . 1 6 3 1 4 7 15 3 . 21 ROAM 7 | . . . . . . . . . . . 2 . . . . . . . . . . . 2 . . . . . . 3 . . . . FOLLOW 51 | . . . . . . . . 2 3 . 7 . . 2 2 3 1 . 1 . 1 4 3 . . 2 1 1 . 6 2 1 . 9 GUARD 1 | . . . . . . . . . . . . . . . . . 1 . . . . . . . . . . . . . . . . . RETURN 1 | . . . . . . . . . . . . . . . . . . . . . . . . . . . . . . . . . . 1 Ally Attacks 710 | . . . . . . . . . . . 19 30 . 201 . . 12 . 46 134 196 . 8 . . . . 23 3 . . 14 24 . Total Damage 19332 | . . . . . . . . . . . 659 1302 . 4218 . . 273 . 1852 4246 4305 . 220 . . . . 668 72 . . 473 1044 . Kills 100 | . . . . . . . . . . . 11 6 . 34 . . . . 11 6 22 . 1 . . . . 3 . . . 3 3 . Allies Corrupted 6 | . . . . . . . . . . . . 2 . . . . . . . . . . . . . 1 . . . . 1 . 2 . Allies Melted 1 | . . . . . . . . . . . . . . . . . . . 1 . . . . . . . . . . . . . . . Intel | -11 -10 -10 -8 -8 -6 -6 -6 -6 -6 -6 -5 -5 -5 -5 -5 -5 -5 -4 -4 -4 -4 -4 -4 -4 -3 -3 -3 -3 -2 -2 -2 -2 -1 -1 ------- Run | Yrd Mat Sub Rec Scr Fac Was Fac Low Low Dat Pro Fac Was Fac Upp Upp War Pro Fac Was Fac Upp Upp Zhi Pro Res Tes Gar Res Qua Sec Gar Acc Com Robot Analysis Total 31 | . . . . . . . . . . . . 1 . . . . . . 5 . . . . 4 . . 3 . 5 . . . 2 11 Derelict Logs Recovered 21 | . . 1 . 4 . . . 1 1 . 1 . . . 3 3 . 3 . . . 2 2 . . . . . . . . . . . Drone Launches 21 | . . . . . . . . . . . . . . . . . . . . . . . . . . . . . . . . . . 21 Drone Recoveries 3 | . . . . . . . . . . . . . . . . . . . . . . . . . . . . . . . . . . 3 Exploration | -11 -10 -10 -8 -8 -6 -6 -6 -6 -6 -6 -5 -5 -5 -5 -5 -5 -5 -4 -4 -4 -4 -4 -4 -4 -3 -3 -3 -3 -2 -2 -2 -2 -1 -1 ------------- Run | Yrd Mat Sub Rec Scr Fac Was Fac Low Low Dat Pro Fac Was Fac Upp Upp War Pro Fac Was Fac Upp Upp Zhi Pro Res Tes Gar Res Qua Sec Gar Acc Com Turns Passed 75220 | 118 534 883 291 4981 812 48 1374 4190 5529 72 1636 2015 42 1299 2206 2498 506 1844 1606 249 1556 3053 3412 434 1487 1778 1325 643 1795 1215 2626 949 2140 20074 Spaces Moved 90960 | 57 228 382 110 3046 544 79 2056 3279 5652 161 2164 3078 113 1872 3143 3596 792 2054 2474 380 2768 4058 3442 866 2410 2663 2236 851 2767 1811 3979 1579 3429 22841 Core 637 | 6 . . . . 200 78 42 . . . . . . . . . . . . . . . . . . . . . . . . . . 311 Treads 767 | 51 161 203 110 115 127 . . . . . . . . . . . . . . . . . . . . . . . . . . . . . Legs 246 | . 67 179 . . . . . . . . . . . . . . . . . . . . . . . . . . . . . . . . Wheels 3137 | . . . . 2931 206 . . . . . . . . . . . . . . . . . . . . . . . . . . . . . Hover 86165 | . . . . . 3 1 2014 3279 5652 161 2164 3078 113 1872 3143 3596 792 2054 2474 380 2768 4058 3442 866 2410 2663 2236 851 2767 1811 3979 1579 3429 22530 Flight 8 | . . . . . 8 . . . . . . . . . . . . . . . . . . . . . . . . . . . . . Fastest Speed 17 | 50 120 120 250 115 32 50 42 42 42 42 42 36 31 35 38 38 38 38 36 36 36 38 38 27 38 21 28 40 17 17 18 30 26 17 Average Speed 40 | 148 148 185 250 138 112 52 46 42 42 42 42 40 35 39 39 39 39 38 36 36 37 39 38 37 38 35 39 40 33 25 28 30 29 30 Slowest Speed 360 | 160 160 250 250 250 360 100 100 42 42 42 96 44 36 97 90 40 45 88 38 36 38 43 38 43 38 104 42 40 90 30 102 30 93 100 Overloaded Moves 413 | . . . . . . . . . . . . . 2 5 . . . . . . . . . 21 . 35 4 . 12 25 14 . . 295 Propulsion Burnouts 1 | . . . . . . . . . . . . . . . . . . . . . . . . . . 1 . . . . . . . . Robots Hopped 1 | . . . . . 1 . . . . . . . . . . . . . . . . . . . . . . . . . . . . . Cave-ins Triggered . | . . . . . . . . . . . . . . . . . . . . . . . . . . . . . . . . . . . Teleports 2 | . . . . . . . . . . . . . . . . . . . . . . . . 1 . . . . . . 1 . . . Exploration Rate (%) 71 | 4 25 23 19 95 10 76 47 99 99 80 98 61 78 40 99 99 91 99 50 96 55 99 99 82 99 52 95 64 64 96 91 75 55 72 Regions Visited 34 Branch Regions 19 Pre-discovered Areas 15 | . 1 1 . 3 . . . 1 . 1 . . . . . 1 . 1 . . . . 3 3 . . . . . . . . . . Known Exits Taken 21 | . . . . . . . 1 1 1 1 1 . . 1 1 1 1 1 . . 1 1 1 1 1 1 1 . 1 1 1 . 1 . Unknown Exits Taken 5 | 1 1 1 1 1 . . . . . . . . . . . . . . . . . . . . . . . . . . . . . . Scrap Searched 50 | . . 9 . 4 . . . 3 6 . 4 . . . 3 5 . 4 . . . 5 5 . 2 . . . . . . . . . Spaces Dug 677 | . . 3 . . 2 . 16 10 26 . 41 47 . 24 20 14 1 16 54 . 22 41 21 . 8 29 21 1 74 23 28 9 52 74 Terrain Destroyed 7148 | . . 3 . . 2 . 84 11 42 . 118 70 . 24 34 17 1 56 54 87 191 174 95 . 228 149 36 478 74 24 135 409 73 4479 Melee 383 | . . 2 . . 2 . 15 6 3 . 2 39 . 17 19 3 1 5 41 . 22 5 4 . 1 24 19 1 52 19 18 6 37 20 Projectile 501 | . . 1 . . . . 2 5 39 . 23 8 . 7 1 13 . 13 13 . . 42 72 . 20 5 2 . 21 5 11 5 15 178 AOE 6261 | . . . . . . . 67 . . . 91 23 . . 14 1 . 38 . 87 169 127 19 . 207 120 15 477 . . 106 398 21 4281 Terrain Rammed . | . . . . . . . . . . . . . . . . . . . . . . . . . . . . . . . . . . . Walls Destroyed . | . . . . . . . . . . . . . . . . . . . . . . . . . . . . . . . . . . . Machines Disabled . | . . . . . . . . . . . . . . . . . . . . . . . . . . . . . . . . . . . Actions | -11 -10 -10 -8 -8 -6 -6 -6 -6 -6 -6 -5 -5 -5 -5 -5 -5 -5 -4 -4 -4 -4 -4 -4 -4 -3 -3 -3 -3 -2 -2 -2 -2 -1 -1 --------- Run | Yrd Mat Sub Rec Scr Fac Was Fac Low Low Dat Pro Fac Was Fac Upp Upp War Pro Fac Was Fac Upp Upp Zhi Pro Res Tes Gar Res Qua Sec Gar Acc Com Total 124509 | 81 331 500 120 3796 677 85 2377 6053 8611 164 2803 3617 113 2343 3987 4541 976 3001 3005 480 3168 5399 5383 967 2899 3289 2572 1083 3437 2461 5158 1950 4354 34728 Wait 26135 | . 39 53 6 718 36 1 125 2666 2648 3 515 274 1 326 684 723 146 802 291 66 253 1114 1726 14 376 304 136 141 362 445 774 176 750 9441 Move 90928 | 56 227 382 109 3045 542 78 2055 3278 5651 160 2163 3078 112 1871 3142 3595 791 2053 2474 379 2767 4057 3441 865 2409 2662 2235 850 2766 1810 3979 1578 3428 22840 Hop 1 | . . . . . 1 . . . . . . . . . . . . . . . . . . . . . . . . . . . . . Pick Up 861 | 13 6 11 . 16 14 2 28 24 41 . 12 20 . 22 17 30 1 10 15 5 19 21 19 26 10 41 26 8 27 22 35 24 13 283 Fast Attach 163 | . . . . . 7 1 18 2 3 . 2 3 . 6 3 2 11 4 5 1 1 3 . 4 . 3 5 . 4 13 29 3 7 23 Attach 450 | 7 3 3 . 1 18 1 7 4 3 . 4 9 . 7 1 3 . 1 4 4 13 22 7 6 8 27 9 8 6 22 41 23 8 170 Detach 101 | . . . . . 2 . 1 . . . . 1 . 1 1 . 2 . 1 . 2 7 2 . . 8 1 . 1 10 18 2 1 40 Swap 963 | . 2 10 2 9 6 . 26 9 16 . 19 52 . 37 13 29 6 37 53 9 20 13 12 13 9 80 30 10 79 17 58 7 33 247 Drop 861 | . 2 6 . 7 15 1 28 25 40 . 11 15 . 21 19 32 10 15 17 7 16 25 18 27 10 36 23 8 27 31 47 26 17 279 Fire 2183 | 5 52 30 3 . 32 . 5 12 154 . 74 9 . 7 45 91 4 59 13 9 13 118 138 3 69 23 6 40 47 5 24 52 16 1025 Melee 1564 | . . 5 . . 2 . 55 20 44 1 3 115 . 45 54 25 5 19 103 . 62 10 18 9 7 105 77 18 110 77 153 55 81 286 Ram 2 | . . . . . . . . . . . . 1 . . . . . . . . . . . . . . . . . . . . . 1 Kick . | . . . . . . . . . . . . . . . . . . . . . . . . . . . . . . . . . . . Crush 1 | . . . . . 1 . . . . . . . . . . . . . . . . . . . . . . . . . . . . . Escape Stasis 26 | . . . . . . . . . . . . . . . . . . . . . 2 . . . . . 2 . . . . 4 . 18 Rewire 26 | . . . . . . . . 7 . . . . . . . . . . . . . 9 . . 1 . . . . . . . . 9 Trap 239 | . . . . . 1 1 29 6 10 . . 40 . . 8 11 . 1 29 . . . 2 . . . 22 . 8 9 . . . 62 Miscellaneous 5 | . . . . . . . . . 1 . . . . . . . . . . . . . . . . . . . . . . . . 4 Route ------- -11/Scrapyard -10/Materials (discovered 2 exits: [*Mat] / [*Sub]) -10/Subcaves -8/Recycling -8/Scraptown (discovered 2 exits: *Fac x2) -6/Factory -6/Waste -6/Factory (discovered 3 exits: *Fac x2 / *Low) -6/Lower Caves -6/Lower Caves (discovered 2 exits: *Fac / *Dat) -6/Data Miner -5/Proximity Caves -5/Factory (discovered 6 exits: *Fac x2 / *Upp x2 / [*Ext x2]) -5/Waste -5/Factory (discovered 3 exits: *Fac / *Upp / [*Ext]) -5/Upper Caves (discovered 2 exits: *Upp / *War) -5/Upper Caves (discovered 2 exits: *Fac / *War) -5/Warlord -4/Proximity Caves -4/Factory (discovered 6 exits: *Res x4 / Upp x2) -4/Waste -4/Factory (discovered 3 exits: *Res / *Upp x2) -4/Upper Caves -4/Upper Caves (discovered 2 exits: *Res / *Zhi) -4/Zhirov -3/Proximity Caves -3/Research (discovered 6 exits: Res x3 / Arm / *Tes x2) -3/Testing (discovered 2 exits: *Res / Gar) -3/Garrison (discovered 3 exits: *Res x3) -2/Research (discovered 5 exits: *Acc x3 / *Qua x2) -2/Quarantine (discovered 2 exits: *Acc / *Sec) -2/Section 7 (discovered 2 exits: *Acc / Gar) -2/Garrison (discovered 3 exits: *Acc x3) -1/Access -1/Command (discovered 2 exits: *Sur x2) To Epsilon Eridani History --------- Turn | Location | Event 4 | -11/Scrapyard | Discovered new exit (range 15) 119 | -11/Scrapyard | Entered Materials 318 | -10/Materials | Build established: Mutant 435 | -10/Materials | Discovered new exit (range 4) 530 | -10/Materials | Core integrity fell below 50% 648 | -10/Materials | Discovered new exit (range 4) 653 | -10/Materials | Entered Subcaves 747 | -10/Subcaves | Learned location of Storage (-8) 1402 | -10/Subcaves | Discovered new exit (range 12) 1415 | -10/Subcaves | Core integrity fell below 20% 1499 | -10/Subcaves | Ambushed by Subdweller buried in earth 1536 | -10/Subcaves | Entered Recycling 1537 | -8/Recycling | Met a Zionite searching for Scraptown 1647 | -8/Recycling | Scanned before Scraplab entrance 1802 | -8/Recycling | Entered Scraplab 1824 | -8/Recycling | Discovered new exit (range 2) 1827 | -8/Recycling | Entered Scraptown 1956 | -8/Scraptown | Heard Great Nut preacher, LISTEN AND RECITE! 2244 | -8/Scraptown | Scanned Subdweller tech in exchange for log data 2246 | -8/Scraptown | Learned 8 Research zone layouts 2247 | -8/Scraptown | Learned location of Armory (-3) 2249 | -8/Scraptown | Learned location of 2 exits from Upper Caves 2250 | -8/Scraptown | Learned Factory security intel 2265 | -8/Scraptown | Discovered new exit (range 7) 2350 | -8/Scraptown | Visited Cyclists 2380 | -8/Scraptown | Visited Awakened 2411 | -8/Scraptown | Visited CR-KLE's Repair Center 2527 | -8/Scraptown | Visited SPCMW 2563 | -8/Scraptown | Visited Cave Peace 2611 | -8/Scraptown | Visited UFD Registry 2611 | -8/Scraptown | Registered with UFD as "Fluxcycle" 2624 | -8/Scraptown | Visited Fellowship of the Rings 2651 | -8/Scraptown | Visited Assassins FH 2705 | -8/Scraptown | Entered Cyclist Reading Room 2709 | -8/Scraptown | Learned location of Zion (-7) 3057 | -8/Scraptown | Visited Science Guys 3121 | -8/Scraptown | Visited Science Testing Area 3142 | -8/Scraptown | Visited Curators Association 3173 | -8/Scraptown | Visited Scrapoid Research Area 3206 | -8/Scraptown | Visited A0-MCA Data Center 3213 | -8/Scraptown | Given a B rating by A0-MCA 3218 | -8/Scraptown | Found A0-MCA's Component Scanner 3245 | -8/Scraptown | Visited Derelict Rescue Squad 3256 | -8/Scraptown | Found DRS Beacon 3284 | -8/Scraptown | Visited Research Penetration Think Tank 3570 | -8/Scraptown | Visited Junk Repository 3779 | -8/Scraptown | CR-KLE repaired 3 parts 3984 | -8/Scraptown | Visited Scrap Suit Storage 4116 | -8/Scraptown | Discovered new exit (range 5) 6808 | -8/Scraptown | Entered Factory 6808 | -6/Factory | Evolved 8 slots: Propulsion x3, Utility x5 7368 | -6/Factory | Discovered new exit (range 14) 7541 | -6/Factory | Lost 19 parts (2p9n5u3w) 7620 | -6/Factory | Manually triggered Chute Trap 7620 | -6/Factory | Sucked down chute 7620 | -6/Factory | Entered Waste 7635 | -6/Waste | EMP discharged 7637 | -6/Waste | Spotted C-40 Crusher 7641 | -6/Waste | Spotted C-40 Crusher 7647 | -6/Waste | Spotted C-40 Crusher 7650 | -6/Waste | Spotted C-40 Crusher 7655 | -6/Waste | Crushed by Compactor (1 part destroyed, 1 dropped) 7657 | -6/Waste | Discovered new exit (range 13) 7668 | -6/Waste | Entered Factory 7995 | -6/Factory | Repaired Broken Lrn. Sensor Array 8020 | -6/Factory | Build established: Scout 8284 | -6/Factory | Core integrity fell below 50% 8471 | -6/Factory | Discovered new exit (range 16) 8736 | -6/Factory | Repaired Adv. System Restoration Module 8761 | -6/Factory | Repaired Imp. Medium Armor Plating 8861 | -6/Factory | Discovered new exit (range 8) 8864 | -6/Factory | Identified exit to Lower Caves 8963 | -6/Factory | Discovered new exit (range 8) 8968 | -6/Factory | Identified exit to Factory 9042 | -6/Factory | Entered Lower Caves 9042 | -6/Lower Caves | Accompanied by 1 ally 9084 | -6/Lower Caves | Encountered a Warlord checkpoint 9222 | -6/Lower Caves | Discovered new exit (range 16) 11406 | -6/Lower Caves | Found Prototype Device 12589 | -6/Lower Caves | Attracted the attention of an 0b10 checkpoint 12795 | -6/Lower Caves | Identified Heart of Steel 13222 | -6/Lower Caves | Identified exit to Lower Caves 13232 | -6/Lower Caves | Entered another Lower Caves area 13232 | -6/Lower Caves | Accompanied by 1 ally 13237 | -6/Lower Caves | Discovered exit to Factory (range 6) 13317 | -6/Lower Caves | Learned Factory trap positions 13720 | -6/Lower Caves | Discovered new exit (range 5) 13724 | -6/Lower Caves | Identified exit to Data Miner 13730 | -6/Lower Caves | Encountered a Warlord checkpoint 17603 | -6/Lower Caves | Attracted the attention of an 0b10 checkpoint 18078 | -6/Lower Caves | Activated DRS Beacon 18761 | -6/Lower Caves | Entered Data Miner 18761 | -6/Data Miner | Accompanied by 3 allies 18761 | -6/Data Miner | Discovered new exit (range 6) 18764 | -6/Data Miner | Identified exit to Proximity Caves 18771 | -6/Data Miner | Met Data Miner 18781 | -6/Data Miner | Acquired the access code to Warlord's prototype stash 18781 | -6/Data Miner | Learned location of Section 7 (-2) 18789 | -6/Data Miner | Received God Mode back door access code from Data Miner 18833 | -6/Data Miner | Entered Proximity Caves 18833 | -5/Proximity Caves | Accompanied by 3 allies 19915 | -5/Proximity Caves | Discovered exit to Factory (range 17) 20003 | -5/Proximity Caves | Heart of Steel transformed into Warbot 20469 | -5/Proximity Caves | Entered Factory 20469 | -5/Factory | Accompanied by 1 ally (Warbot) 20469 | -5/Factory | Evolved 2 slots: Utility x2 20470 | -5/Factory | Loaded intel: 76 trap records 20515 | -5/Factory | Spotted B-75 Beast 20556 | -5/Factory | Discovered new exit (range 17) 20563 | -5/Factory | Destroyed B-75 Beast 20574 | -5/Factory | Identified exit to Upper Caves 20594 | -5/Factory | Discovered new exit (range 22) 20658 | -5/Factory | Repaired Angular Momentum Engine 20719 | -5/Factory | Repaired Imp. Gravmag System? 20809 | -5/Factory | Build established: Hacker-Scout 21046 | -5/Factory | Discovered exit to Upper Caves (range 15) 21341 | -5/Factory | Discovered new exit (range 20) 21376 | -5/Factory | Scrapoids reinforcements arrived? 21417 | -5/Factory | Lost 5 allies 21772 | -5/Factory | Discovered new exit (range 20) 21827 | -5/Factory | Repaired Imp. Gravmag System 21864 | -5/Factory | Discovered new exit (range 22) 22094 | -5/Factory | Fabricated Antigrav System? 22199 | -5/Factory | Hacking Suite fried by hacking feedback 22484 | -5/Factory | Manually triggered Chute Trap 22484 | -5/Factory | Sucked down chute 22484 | -5/Factory | Entered Waste 22488 | -5/Waste | Spotted C-40 Crusher 22495 | -5/Waste | Spotted C-40 Crusher 22499 | -5/Waste | EMP discharged 22501 | -5/Waste | Spotted C-40 Crusher 22508 | -5/Waste | Spotted C-40 Crusher 22508 | -5/Waste | Spotted C-40 Crusher 22516 | -5/Waste | Spotted C-40 Crusher 22521 | -5/Waste | Discovered new exit (range 14) 22525 | -5/Waste | Identified exit to Factory 22526 | -5/Waste | Entered Factory 22659 | -5/Factory | Scrapoids reinforcements arrived? 22830 | -5/Factory | Repaired Adv. Transmission Jammer? 22866 | -5/Factory | Discovered new exit (range 22) 22910 | -5/Factory | Discovered exit to Upper Caves (range 8) 23219 | -5/Factory | Scrapoids reinforcements arrived? 23261 | -5/Factory | Found Prototype Launcher 23264 | -5/Factory | Identified Scatter Rocket Array 23266 | -5/Factory | Found Scatter Rocket Array 23355 | -5/Factory | P-70 Sage assimilated allied 05F17-D 23397 | -5/Factory | Discovered new exit (range 9) 23434 | -5/Factory | Scrapoids reinforcements arrived? 23484 | -5/Factory | Incoming investigation squad redirected 23575 | -5/Factory | Repaired Cld. Gravmag System? 23596 | -5/Factory | Lost 3 allies 23726 | -5/Factory | First assault squad dispatched 23825 | -5/Factory | Entered Upper Caves 23825 | -5/Upper Caves | Accompanied by 1 ally 23826 | -5/Upper Caves | Identified exit to Upper Caves 23904 | -5/Upper Caves | Build established: Hacker-Ninja 23968 | -5/Upper Caves | A Derelict revealed a hidden shortcut to "reach the base" 23968 | -5/Upper Caves | Identified exit to Warlord 24112 | -5/Upper Caves | Learned Factory terminal intel 24159 | -5/Upper Caves | Learned location of 1 exit from Factory 24386 | -5/Upper Caves | Build established: Hacker-Scout 25554 | -5/Upper Caves | Learned Research terminal intel 25554 | -5/Upper Caves | Learned Research security intel 25554 | -5/Upper Caves | Learned location of 1 exit from Research 25554 | -5/Upper Caves | Learned Armory trap positions 26031 | -5/Upper Caves | Entered another Upper Caves area 26031 | -5/Upper Caves | Accompanied by 1 ally 26033 | -5/Upper Caves | Identified exit to Factory 26143 | -5/Upper Caves | Encountered a Warlord checkpoint 26189 | -5/Upper Caves | Learned 8 Factory zone layouts 27062 | -5/Upper Caves | Attracted the attention of an 0b10 checkpoint 27991 | -5/Upper Caves | Acquired the password to a Derelict Tinkerer's latest research 28316 | -5/Upper Caves | Caught by Unaware searching for contraband prototypes 28440 | -5/Upper Caves | Found Prototype Special Weapon 28440 | -5/Upper Caves | Identified Molecular Deconstructor 28529 | -5/Upper Caves | Entered Warlord 28529 | -5/Warlord | Accompanied by 3 allies 28754 | -5/Warlord | Warlord's base attacked by MAIN.C 28773 | -5/Warlord | Rebuked by Warlord 28786 | -5/Warlord | Opened Warlord's prototype stash 28788 | -5/Warlord | Found Prototype Processor 28788 | -5/Warlord | Identified Exp. Armor Integrity Analyzer 28794 | -5/Warlord | Found Prototype Device 28794 | -5/Warlord | Identified Exp. Cloaking Device 28832 | -5/Warlord | Found Prototype Energy Cannon 28832 | -5/Warlord | Identified Vortex Driver 28943 | -5/Warlord | Discovered new exit (range 12) 29035 | -5/Warlord | Identified exit to Proximity Caves 29035 | -5/Warlord | Entered Proximity Caves 29051 | -4/Proximity Caves | Spotted B-86 Titan 29412 | -4/Proximity Caves | Learned location of 1 exit from Upper Caves 30051 | -4/Proximity Caves | Destroyed B-86 Titan 30101 | -4/Proximity Caves | Discovered exit to Factory (range 13) 30158 | -4/Proximity Caves | Learned Research security intel 30754 | -4/Proximity Caves | Attracted the attention of an 0b10 checkpoint 30879 | -4/Proximity Caves | Entered Factory 30879 | -4/Factory | Evolved 2 slots: Propulsion x1, Utility x1 30880 | -4/Factory | Identified exit to Research 30882 | -4/Factory | Loaded intel: 26 terminal locations 30996 | -4/Factory | Spotted B-86 Titan 31007 | -4/Factory | Discovered exit to Research (range 20) 31105 | -4/Factory | Repaired Mak. Sensor Array 31186 | -4/Factory | Allied Derelicts emerged from ambush trap array 31242 | -4/Factory | Identified exit to Upper Caves 31265 | -4/Factory | Spotted B-86 Titan 31455 | -4/Factory | Discovered exit to Research (range 22) 31550 | -4/Factory | Fabricated Smartbomb Launcher (x1) 32080 | -4/Factory | Scrapoids reinforcements arrived? 32129 | -4/Factory | First assault squad dispatched 32136 | -4/Factory | Lost 3 allies 32280 | -4/Factory | Fabricated Exp. Signal Interpreter (x1) 32485 | -4/Factory | Sucked down chute 32485 | -4/Factory | Entered Waste 32486 | -4/Waste | Met a frightened Derelict 32488 | -4/Waste | Spotted C-40 Crusher 32489 | -4/Waste | Spotted C-40 Crusher 32500 | -4/Waste | Spotted C-40 Crusher 32511 | -4/Waste | Spotted C-40 Crusher 32511 | -4/Waste | Spotted C-40 Crusher 32517 | -4/Waste | Spotted C-40 Crusher 32521 | -4/Waste | Discovered new exit (range 14) 32527 | -4/Waste | Warlord forces began an assault 32536 | -4/Waste | Allies destroyed C-40 Crusher 32538 | -4/Waste | Allies destroyed C-40 Crusher 32545 | -4/Waste | Destroyed C-40 Crusher 32547 | -4/Waste | Allies destroyed C-40 Crusher 32559 | -4/Waste | Allies destroyed C-40 Crusher 32572 | -4/Waste | Allies destroyed C-40 Crusher 32707 | -4/Waste | Identified exit to Factory 32734 | -4/Waste | Entered Factory 32734 | -4/Factory | Accompanied by 16 allies 32796 | -4/Factory | Repaired Antigrav Array 32956 | -4/Factory | Fabricated Cld. Antigrav System (x1) 32998 | -4/Factory | Fabricated Cld. Antigrav System (x1) 33121 | -4/Factory | Garrison activated, responded to threat 33164 | -4/Factory | Lost 3 allies 33186 | -4/Factory | Discovered exit to Research (range 17) 33408 | -4/Factory | Lost 5 allies 33983 | -4/Factory | Repaired Lgt. Quantum Reactor 34096 | -4/Factory | Repaired Broken Ionic Axe? 34108 | -4/Factory | Cargo convoy interrupted 34234 | -4/Factory | First assault squad dispatched 34238 | -4/Factory | Fabricated Exp. Utility Shielding (x1) 34290 | -4/Factory | Entered Upper Caves 34290 | -4/Upper Caves | Accompanied by 1 ally 34291 | -4/Upper Caves | Identified exit to Upper Caves 34313 | -4/Upper Caves | Found DCF Scrap (11 items) 34500 | -4/Upper Caves | Spotted B-86 Titan 34576 | -4/Upper Caves | Learned Research interactive machine intel 35615 | -4/Upper Caves | Destroyed 7 combat bots 35625 | -4/Upper Caves | Attracted the attention of an 0b10 outpost 36476 | -4/Upper Caves | Destroyed B-86 Titan 36828 | -4/Upper Caves | Attracted the attention of an 0b10 checkpoint 37343 | -4/Upper Caves | Entered another Upper Caves area 37343 | -4/Upper Caves | Accompanied by 3 allies 37346 | -4/Upper Caves | Attracted the attention of an 0b10 checkpoint 37353 | -4/Upper Caves | Spotted B-86 Titan 37393 | -4/Upper Caves | Discovered exit to Research (range 19) 37515 | -4/Upper Caves | Learned location of Quarantine (-2) 37530 | -4/Upper Caves | Learned location of Testing (-3) 37682 | -4/Upper Caves | Discovered new exit (range 9) 38093 | -4/Upper Caves | Found Alien Artifact 39204 | -4/Upper Caves | Destroyed B-86 Titan 40323 | -4/Upper Caves | Learned Armory security intel 40323 | -4/Upper Caves | Learned Extension security intel 40323 | -4/Upper Caves | Learned Research emergency access door positions 40720 | -4/Upper Caves | Identified exit to Zhirov 40755 | -4/Upper Caves | Entered Zhirov 40755 | -4/Zhirov | Discovered new exit (range 3) 40762 | -4/Zhirov | Met Zhirov 40830 | -4/Zhirov | Zhirov requested help retrieving the SGEMP Prototype 40834 | -4/Zhirov | Learned location of Command (-1) 40843 | -4/Zhirov | Found Alien Artifact 40844 | -4/Zhirov | Identified Integrated Reactor 40844 | -4/Zhirov | Installed Integrated Reactor, increased core energy generation (+10) 40855 | -4/Zhirov | Found Alien Artifact 40874 | -4/Zhirov | Identified Dimensional Node Initializer 40874 | -4/Zhirov | Initialized slip node 40876 | -4/Zhirov | Identified exit to Proximity Caves 41079 | -4/Zhirov | Cloak Generator disabled 41079 | -4/Zhirov | Attacked by Zhirov 41089 | -4/Zhirov | Enhanced Grunts warped into view 41097 | -4/Zhirov | Found Quantum Router 41099 | -4/Zhirov | Found Deep Network Scanner 41100 | -4/Zhirov | Found Alien Artifact 41101 | -4/Zhirov | Identified Transdimensional Reconstructor (x2) 41101 | -4/Zhirov | Warped through subspace to slip node 41103 | -4/Zhirov | Zhirov detonated his lab 41113 | -4/Zhirov | Found Zhirov Special 41189 | -4/Zhirov | Entered Proximity Caves 41705 | -3/Proximity Caves | Attracted the attention of an 0b10 checkpoint 41759 | -3/Proximity Caves | Discovered exit to Research (range 5) 41878 | -3/Proximity Caves | Spotted B-86 Titan 41957 | -3/Proximity Caves | Destroyed B-86 Titan 42676 | -3/Proximity Caves | Entered Research 42676 | -3/Research | Accompanied by 1 ally 42676 | -3/Research | Evolved 2 slots: Propulsion x1, Utility x1 42677 | -3/Research | Identified exit to Armory 42678 | -3/Research | Identified exit to Testing 42682 | -3/Research | Loaded intel: 46 interactive machine locations 42683 | -3/Research | Loaded intel: 24 terminal locations 43296 | -3/Research | Fabricated Exp. Sensor Array (x1) 43316 | -3/Research | Found Gui. Micro-nuke Launcher 43350 | -3/Research | Fabricated Exp. Terrain Scanner (x1) 43461 | -3/Research | Cargo convoy interrupted 43521 | -3/Research | Found Prototype Device 43574 | -3/Research | Identified exit to Research 43644 | -3/Research | Spotted B-86 Titan 43649 | -3/Research | Lost 3 parts (1p2n) 43727 | -3/Research | Found Exp. Hacking Suite 43796 | -3/Research | Identified Exp. Thermal Shield 43799 | -3/Research | Found Prototype Device 43852 | -3/Research | Repaired Kinetic Spear 43887 | -3/Research | Identified Exp. EM Disruption Field 43906 | -3/Research | Repaired Cld. Antigrav System? 44011 | -3/Research | Fabricated Exp. Utility Shielding (x1) 44131 | -3/Research | Repaired Antigrav Array? 44250 | -3/Research | Build established: Wizard-Scout 44324 | -3/Research | Found Prototype Processor 44363 | -3/Research | Identified Spectral Analyzer 44454 | -3/Research | Entered Testing 44546 | -3/Testing | Repaired Cld. Antigrav System? 44724 | -3/Testing | Found Prototype Energy Cannon 44726 | -3/Testing | Identified Hpw. Disruptor Cannon 44736 | -3/Testing | Discovered exit to Research (range 20) 44834 | -3/Testing | Found Prototype Launcher 44836 | -3/Testing | Found Prototype Device 44842 | -3/Testing | Spotted Striker 44843 | -3/Testing | Spotted Striker 44850 | -3/Testing | Identified Adv. Kinecellerator 44858 | -3/Testing | Found Prototype Device 44859 | -3/Testing | Identified Thermal Barrier 44902 | -3/Testing | Identified Hellfire Missile Launcher 44929 | -3/Testing | Fabricated Exp. Sensor Array (x1) 44931 | -3/Testing | Found Spectral Analyzer 45036 | -3/Testing | Found Prototype Energy Gun 45037 | -3/Testing | Identified Warp Gun 45126 | -3/Testing | Found Prototype Energy Gun 45126 | -3/Testing | Identified Hyp. EM Gauss Rifle 45204 | -3/Testing | Repaired Nanosword 45259 | -3/Testing | Repaired Cld. Antigrav System? 45420 | -3/Testing | Repaired Imp. Propulsion Shielding 45454 | -3/Testing | Repaired Lgt. Particle Reactor 45672 | -3/Testing | Identified exit to Garrison 45749 | -3/Testing | Repaired Exp. Utility Shielding 45779 | -3/Testing | Entered Garrison 45779 | -3/Garrison | Accompanied by 2 allies 45839 | -3/Garrison | Phase Generator disabled 45839 | -3/Garrison | Spotted B-86 Titan 45852 | -3/Garrison | Destroyed B-86 Titan 45863 | -3/Garrison | Triggered checkpoint 45878 | -3/Garrison | Discovered exit to Research (range 81) 45878 | -3/Garrison | Discovered exit to Research (range 65) 45878 | -3/Garrison | Discovered exit to Research (range 88) 45878 | -3/Garrison | Learned Research security intel 45921 | -3/Garrison | Triggered checkpoint 45928 | -3/Garrison | Triggered checkpoint 45930 | -3/Garrison | Spotted B-86 Titan 45972 | -3/Garrison | Destroyed B-86 Titan 46290 | -3/Garrison | Triggered checkpoint 46313 | -3/Garrison | Installed Relay Interface Framework 46331 | -3/Garrison | Garrison Relay disabled 46341 | -3/Garrison | Triggered checkpoint 46352 | -3/Garrison | Garrison Relay disabled 46422 | -3/Garrison | Entered Research 46422 | -2/Research | Accompanied by 1 ally 46422 | -2/Research | Evolved 2 slots: Power x1, Utility x1 46577 | -2/Research | Discovered new exit (range 6) 46582 | -2/Research | Identified exit to Quarantine 46591 | -2/Research | Repaired Exp. Utility Shielding? 46649 | -2/Research | Repaired Cld. Antigrav System? 46743 | -2/Research | Found Exp. Transmission Jammer 46746 | -2/Research | Identified exit to Access 47042 | -2/Research | Spotted B-90 Cyclops 47130 | -2/Research | Fabricated Beam Splitter (x1) 47452 | -2/Research | Spotted B-90 Cyclops 47495 | -2/Research | Fabricated Exp. Terrain Scan Processor (x1) 47610 | -2/Research | Spotted B-90 Cyclops 47758 | -2/Research | Found Prototype Device 47760 | -2/Research | Identified Adv. EM Disruption Field 47978 | -2/Research | Found Prototype Launcher 47979 | -2/Research | Identified Ragnarok Missile Launcher 48011 | -2/Research | Build established: Wizard-Ninja 48057 | -2/Research | Found Prototype Launcher 48067 | -2/Research | Identified Enh. Gamma Bomb Array 48209 | -2/Research | Found Launcher Loader 48217 | -2/Research | Entered Quarantine 48390 | -2/Quarantine | Discovered exit to Access (range 27) 48398 | -2/Quarantine | Found Alien Artifact 48403 | -2/Quarantine | Identified Core Reset Matrix 48417 | -2/Quarantine | Found Prototype Device 48424 | -2/Quarantine | Identified Exp. Weapon Cycler 48439 | -2/Quarantine | Found Alien Slashing Weapon 48439 | -2/Quarantine | Identified Sigix Broadsword 48472 | -2/Quarantine | Found Alien Artifact 48472 | -2/Quarantine | Identified Phase Redirector 48534 | -2/Quarantine | Found Alien Impact Weapon 48534 | -2/Quarantine | Identified Core Stripper 48644 | -2/Quarantine | Found Alien Artifact 48646 | -2/Quarantine | Identified Subatomic Replicator 48819 | -2/Quarantine | Found Alien Launcher 48819 | -2/Quarantine | Identified Sigix Terminator 48823 | -2/Quarantine | Used Subatomic Replicator to create Alien Launcher 48830 | -2/Quarantine | Identified Supercharged Sigix Terminator 48942 | -2/Quarantine | Repaired Cld. Antigrav System 49182 | -2/Quarantine | Spotted Fortress 49203 | -2/Quarantine | Discovered new exit (range 22) 49208 | -2/Quarantine | Identified exit to Section 7 49432 | -2/Quarantine | Entered Section 7 49439 | -2/Section 7 | Found Alien Artifact 49439 | -2/Section 7 | Identified Integrity Redistributor 49439 | -2/Section 7 | Used Integrity Redistributor, redistributed integrity from core (-21) 49457 | -2/Section 7 | Discovered exit to Access (range 21) 49820 | -2/Section 7 | Found Integrated Mediator 49820 | -2/Section 7 | Installed Integrated Mediator, increased core attachment efficiency 49842 | -2/Section 7 | Found Integrated Reactor 49842 | -2/Section 7 | Installed Integrated Reactor, increased core energy generation (+10) 49886 | -2/Section 7 | Repaired Imp. Propulsion Shielding 49952 | -2/Section 7 | Spotted B-90 Cyclops 50536 | -2/Section 7 | Found Integrated Reactor 50536 | -2/Section 7 | Installed Integrated Reactor, increased core energy generation (+10) 50653 | -2/Section 7 | Spotted S7 Guard 50654 | -2/Section 7 | Found Alien Artifact 50668 | -2/Section 7 | Identified Core Physics Calibrator 50692 | -2/Section 7 | Spotted S7 Guard 50693 | -2/Section 7 | Found Alien Artifact 50709 | -2/Section 7 | Identified Navigation Efficiency Matrix 50804 | -2/Section 7 | Spotted S7 Guard 50806 | -2/Section 7 | Found Core Membrane 50808 | -2/Section 7 | Installed Core Membrane, gained immunity to corruption 50843 | -2/Section 7 | Spotted Alpha 7 50888 | -2/Section 7 | Warped through subspace 50912 | -2/Section 7 | Spotted Alpha 7 51123 | -2/Section 7 | Spotted B-99 Colossus 51128 | -2/Section 7 | Spotted Executioner 51128 | -2/Section 7 | Spotted Executioner 51141 | -2/Section 7 | Found Alien Artifact 51147 | -2/Section 7 | Found Alien Artifact 51156 | -2/Section 7 | Spotted Striker 51156 | -2/Section 7 | Spotted Striker 51162 | -2/Section 7 | Spotted Executioner 51280 | -2/Section 7 | Found Alien Artifact 51280 | -2/Section 7 | Identified LRC Storage 51280 | -2/Section 7 | Installed LRC Storage, increased inventory capacity (+2) 51283 | -2/Section 7 | Found Alien Artifact 51284 | -2/Section 7 | Identified LRC Inertial Stabilizer 51284 | -2/Section 7 | Installed LRC Inertial Stabilizer, increased mass support (+10) 51324 | -2/Section 7 | Spotted Executioner 51401 | -2/Section 7 | Found Alien Energy Gun 51403 | -2/Section 7 | Spotted Striker 51403 | -2/Section 7 | Spotted Striker 51423 | -2/Section 7 | Found Transdimensional Reconstructor 51735 | -2/Section 7 | Found Exp. System Shield 51813 | -2/Section 7 | Repaired Antigrav Array 51849 | -2/Section 7 | Repaired Cld. Antigrav System 51875 | -2/Section 7 | Repaired Exp. Utility Shielding 51911 | -2/Section 7 | Repaired Com. Particle Reactor 51935 | -2/Section 7 | Repaired Cmb. Linear Gravjet 52058 | -2/Section 7 | Identified exit to Garrison 52058 | -2/Section 7 | Entered Garrison 52151 | -2/Garrison | Triggered checkpoint 52205 | -2/Garrison | Garrison Relay disabled 52319 | -2/Garrison | Expanded RIF knowledge: Coupler Efficiency 52380 | -2/Garrison | Build established: Wizard-Sprinter 52467 | -2/Garrison | Spotted B-90 Cyclops 52490 | -2/Garrison | Destroyed B-90 Cyclops 52505 | -2/Garrison | Triggered checkpoint 52505 | -2/Garrison | Triggered checkpoint 52641 | -2/Garrison | Discovered exit to Access (range 29) 52641 | -2/Garrison | Discovered exit to Access (range 36) 52641 | -2/Garrison | Discovered exit to Access (range 63) 52641 | -2/Garrison | Learned Access security intel 52718 | -2/Garrison | Identified Sigix Sheargun 52806 | -2/Garrison | Expanded RIF knowledge: Watcher Feeds 52823 | -2/Garrison | Garrison Relay disabled 52916 | -2/Garrison | Learned Access security intel 52987 | -2/Garrison | Found embedded Infiltrators 53007 | -2/Garrison | Entered Access 53007 | -1/Access | Accompanied by 2 allies 53007 | -1/Access | Evolved 2 slots: Utility x1, Weapon x1 53078 | -1/Access | Repaired Exp. Utility Shielding 53086 | -1/Access | Identified exit to Command 53102 | -1/Access | Repaired Antigrav Array 53190 | -1/Access | Found Exp. Hacking Suite 53719 | -1/Access | Repaired Cld. Antigrav System 53847 | -1/Access | Spotted B-99 Colossus 53864 | -1/Access | Destroyed 7 combat bots 54017 | -1/Access | Found Exp. Terrain Scan Processor 54131 | -1/Access | Build established: Wizard-Ninja 54301 | -1/Access | Fabricated Exp. Force Field (x1) 54859 | -1/Access | Fabricated Exp. Propulsion Shielding (x1) 55147 | -1/Access | Entered Command 55240 | -1/Command | Phase Generator disabled 55383 | -1/Command | Disengaged cave seal 55582 | -1/Command | Repaired Smartbomb Launcher 55661 | -1/Command | Discovered new exit (range 15) 55998 | -1/Command | Disengaged cave seal 56244 | -1/Command | Build established: Wizard-Scout 56858 | -1/Command | Found Exp. Actuator Array 57047 | -1/Command | Fired Supercharged Sigix Terminator 57047 | -1/Command | MAIN.C activated Command garrisons 57067 | -1/Command | Spotted B-99 Colossus 57068 | -1/Command | Destroyed 169 combat bots 57089 | -1/Command | Spotted B-99 Colossus 57095 | -1/Command | Spotted Alpha 7 57100 | -1/Command | Identified exit to Surface 57111 | -1/Command | Destroyed B-99 Colossus 57127 | -1/Command | Destroyed B-99 Colossus 57210 | -1/Command | Destroyed 16 combat bots 57582 | -1/Command | Build established: Wizard-Ninja 57855 | -1/Command | Found Quantum Capacitor 61905 | -1/Command | Build established: Hacker-Ninja 62743 | -1/Command | Repaired Nanosword 66420 | -1/Command | Found Fusion Bomb Launcher 66957 | -1/Command | Spotted Alpha 7 67003 | -1/Command | Destroyed Alpha 7 67236 | -1/Command | Spotted M Guard 67237 | -1/Command | Spotted M Guard 67237 | -1/Command | Spotted Combat Programmer 67237 | -1/Command | Spotted Combat Programmer 68374 | -1/Command | Spotted B-99 Colossus 68402 | -1/Command | Destroyed B-99 Colossus 68606 | -1/Command | Build established: Hacker-Scout 69175 | -1/Command | Destroyed Combat Programmer 69207 | -1/Command | Destroyed Combat Programmer 69555 | -1/Command | Destroyed M Guard 69643 | -1/Command | Destroyed M Guard 69643 | -1/Command | All MAIN.C guards destroyed 70119 | -1/Command | Build established: Hacker-Ninja 71621 | -1/Command | Build established: Wizard-Ninja 72032 | -1/Command | Repaired Cld. Antigrav System 72086 | -1/Command | Repaired Cld. Antigrav System 72105 | -1/Command | Repaired Imp. Utility Shielding? 72175 | -1/Command | Repaired Centrium Medium Armor Plating 72212 | -1/Command | Repaired Cmb. Linear Gravjet 72240 | -1/Command | Repaired Smartbomb Launcher 72253 | -1/Command | Build established: Wizard-Sprinter 72294 | -1/Command | Repaired Centrium Medium Armor Plating 72407 | -1/Command | Repaired Lyr. Heavy Armor Plating 72426 | -1/Command | Repaired Imp. Weapon Shielding 72445 | -1/Command | Repaired Imp. Weapon Shielding 72467 | -1/Command | Repaired Microactuators 72504 | -1/Command | Repaired Quantum Reactor 72532 | -1/Command | Repaired Hvy. Beamcaster 72597 | -1/Command | Central database locked down 72617 | -1/Command | Repaired Adv. Heat Sink 72641 | -1/Command | Repaired Quantum Reactor 72665 | -1/Command | Repaired Lgt. Quantum Reactor 73016 | -1/Command | Build established: Hacker-Ninja 73507 | -1/Command | Build established: Scavenger-Ninja 73891 | -1/Command | Build established: Scavenger-Scout 73935 | -1/Command | Met MAIN.C 74336 | -1/Command | 0b10 Conduit disabled 74769 | -1/Command | Destroyed MAIN.C Shell 74937 | -1/Command | Core integrity fell below 50% 74970 | -1/Command | Core integrity fell below 20% 74994 | -1/Command | Lost 27 parts (2p10n12u3w) 75220 | -1/Command | Identified Terrabomb 75220 | -1/Command | Used Terrabomb 75221 | *** | Escaped! Last Messages --------------- 74951_ Cmb. Linear Gravjet destroyed. 74951_ Knocked back. 74953_ Acquired Imp. Antigrav System. 74954_ Knocked back. 74957_ Quantum Reactor destroyed. 74957_ Imp. Antigrav System destroyed. 74957_ Knocked back. 74963_ Exp. Actuator Array destroyed. 74963_ Knocked back. 74968_ Destroyed Adv. Quantum Shading Machine. 74969_ Knocked back. 75023_ Acquired 5 matter. 75042_ Acquired Imp. Antigrav System. 75164_ Acquired Alien Artifact. 75166_ Acquired Cld. Linear Gravjet. 75171_ Acquired Quantum Reactor. 75174_ Acquired Imp. Core Shielding. 75176_ Acquired Imp. Antigrav System. 75220_ Identified Terrabomb. 75220_ Terrabomb activated. Map ----- +----------------------------------------------------+ | [ ! # # # ############## | | = / # ############# | | # = [ = # ## ########## | | # * / # | | # = = M # ########### | | # = ########### | | # [ *= ############ | | # ############# | | # ;; ;; ############ | | " !/ ;; ;; ###########% | | " ; ; ######### | | # ; ; ######### | | "! ; = ; ######## | | " ! ! ; ! ; ########= | | # ; ] ; ####### | | # ; ] ! ; ####### | | # ; ![ ; ####### | | # ; ;;; %= ;;; ####### | | # = + ; === ; ###### | | "[ "#;;;; ;;; [= [ ; ###### | | "=*"# ; ;;;= =!!* =! ;; ###### | | %!!## ; ;;;* !=[ ; ###### | | !!*# ; ;;;!=!==! ! ;; ###### | | = # ; ;;; !] ; ###### | | *!!!; ;;;;;;;;;;; | ["" ^! ; ##### | | ! # ;; "@ !^!!;; ###### | | ##### ;; ^ !! !;; ;## ### | | ##### ;; ^ ^] ;; ; | | ##### ;; ^^^^^^^^!];; ; =%! | | ##### ;; [ ![;; ; " != | | ##### ;; ! ! / ;; ; " %! | | ###### ;;;;;;;;;;;;;;;; # " =! | | ######;;;;; ;;;;;;;;;;;;;;;; # = | | ; ;;;;;;;;;;;;;;; ## " % | | ! ; ; [[[ ; ## | | != ; ; [[ ; ###] | | " " ""! ;;;;;;;;; ; [[ ; #######+# | | "" """" + ; ; % ;;;;## =% | | "" """" ;;;;;;; ; ; + ! | | "" """" # ; ; ; %= ;;#### =[ | | ## ; ; ;!;;;;;+;;;;;;;##### | | #### ; ; ;[;; | | ######; ; ;|;; | | "T"""" ########## ; ;!;; | | """"""" #######;#####!;# "" """" "" | | ## ##### # *! ####%## """" """" """" | | #### # ! ####=## """" """" """" | | ######### !! " */!= !## " """ " | | # = """ ! ####!## | | == """ ####[## | +----------------------------------------------------+ Best States ------------- Heat Dissipation 83 Coolant Potential 100 Energy Generation 79 Energy Capacity 690 Matter Stores 300 Matter Capacity 300 Sight Range 24 Robot Scan Range 20 Terrain Scan Range 30 Terrain Scan Density 1010 Jamming Range 22 Cloak Strength 4 Additional Mass Support 9 EM Shielding 3 Corruption Containment 8 Corruption Block 14 Armor Coverage 1050 Resistance: KI 10 Resistance: TH 75 Resistance: EX 50 Resistance: EM 75 Core Shielding 30 Propulsion Shielding 90 Utility Shielding 90 Weapon Shielding 66 Point Defense Rating 160 Melee Speed Boost 20 Phase Shifting 15 Evasion (%) 86 Targeting Accuracy 16 Melee Accuracy 16 Launcher Accuracy 30 Target Analysis 8 Recoil Reduction 4 Energy Filtering 50 Salvage Targeting 3 Offensive Hacking 77 Defensive Hacking 77 Relay Coupler Types 1 Relay Coupler Value 40 Authchip Count 1 Item Schematics ----------------- Cld. Cesium-ion Thruster | -6/Factory | Scanalyzed Com. Ion Cannon | -6/Factory | Scanalyzed Antigrav System | -6/Factory | Hacked Lrn. Sensor Array | -6/Factory | Scanalyzed Hvy. Particle Gun | -6/Factory | Scanalyzed Particle Reactor | -6/Data Miner | Free Q-thruster | -6/Data Miner | Free Neutrino Core | -6/Data Miner | Free Dispersion Rifle | -6/Data Miner | Free Point Defense Array | -6/Data Miner | Free Hvy. Siege Treads | -6/Data Miner | Free Hvy. Proton Missile Launcher | -6/Data Miner | Free Imp. Thermal Defense Suite | -6/Data Miner | Free Cld. Nuclear Pulse Thruster | -6/Data Miner | Free Lgt. Regenerative Plating | -6/Data Miner | Free Combat Drone Bay | -6/Data Miner | Free Hacking Suite | -5/Factory | Scanalyzed Cld. Gravmag System | -5/Factory | Scanalyzed Cold Fusion Reactor | -5/Factory | Scanalyzed Imp. Linear Gravjet | -5/Factory | Hacked Biomechanical Wings | -5/Factory | Scanalyzed Imp. Component Analysis Suite | -5/Factory | Scanalyzed Diametric Drive | -4/Factory | Scanalyzed Smartbomb Launcher | -4/Factory | Hacked Antimissile System | -4/Factory | Hacked Cld. Antigrav System | -4/Factory | Scanalyzed Exp. Signal Interpreter | -4/Factory | Hacked Adv. Plasma Cannon | -4/Factory | Extracted Arm. Leg | -4/Factory | Extracted Imp. Recalibrator | -4/Factory | Extracted Adv. Power Amplifier | -4/Factory | Extracted Imp. Heavy Armor Plating | -4/Factory | Extracted Exp. Heat Sink | -4/Factory | Scanalyzed Hcp. Storage Unit | -4/Factory | Hacked Exp. Utility Shielding | -4/Factory | Hacked Exp. Propulsion Shielding | -4/Factory | Hacked Ionic Axe | -4/Factory | Scanalyzed Adv. Reaction Control System | -4/Factory | Scanalyzed Assault Drone Bay | -4/Zhirov | Free Exp. Optical Array | -4/Zhirov | Free Imp. Arc Thrower | -4/Zhirov | Free Lrn. Proton Cannon | -3/Research | Scanalyzed Imp. System Shield | -3/Research | Scanalyzed Exp. Terrain Scanner | -3/Research | Hacked Exp. Terrain Scan Processor | -3/Research | Hacked Exp. Sensor Array | -3/Research | Hacked Adv. Quantum Shading Machine | -3/Research | Hacked Enh. Nova Cannon | -3/Research | Hacked Spectral Analyzer | -3/Research | Scanalyzed Hdn. Centrium Wheel | -3/Testing | Archive System Purifier | -3/Testing | Archive Gravity Neutralizer | -3/Testing | Archive Exp. Shield Generator | -3/Testing | Archive Adv. Myomer Leg | -3/Testing | Archive Nanosword | -3/Testing | Scanalyzed Exp. Core Analyzer | -3/Testing | Hacked Adv. Matter Compressor | -3/Testing | Archive Com. Tesla Bomb Launcher | -3/Testing | Archive Impact Mace | -3/Testing | Archive Lrn. Phase Cannon | -3/Testing | Archive Adv. Gravity Neutralizer | -3/Testing | Archive Lgt. Antimatter Cannon | -3/Testing | Archive Hvy. Wave Gun | -3/Testing | Archive Cld. Field Propulsion Drive | -3/Testing | Archive Enh. Armored Medium Treads | -3/Testing | Archive Particle Accelerator | -3/Testing | Archive Lgt. Quantum Reactor | -3/Testing | Scanalyzed Imp. Matter Compressor | -3/Testing | Archive Tactical Quantum Warhead | -3/Testing | Archive Cld. Fission Core | -3/Testing | Archive Gamma Bomb Array | -3/Testing | Extracted Greatsword | -3/Testing | Extracted Arm. Huge Wheel | -3/Testing | Extracted Centrium Wheel | -3/Testing | Extracted Beam Splitter | -2/Research | Hacked Hvy. Dispersion Rifle | -2/Quarantine | Archive Imp. Q-thruster | -2/Quarantine | Archive Exp. Thermal Defense Suite | -2/Quarantine | Archive Cld. Linear Gravjet | -2/Quarantine | Scanalyzed Cld. Proton Cannon | -2/Quarantine | Archive Prc. Phase Gun | -2/Quarantine | Archive Exp. Q-thruster | -2/Quarantine | Archive Enh. Biometal Leg | -2/Quarantine | Archive Exp. Thermal Shield | -2/Quarantine | Archive Imp. Lightning Gun | -2/Quarantine | Archive Imp. Diametric Drive | -2/Quarantine | Archive Shock Maul | -2/Quarantine | Reported Exp. Myomer Leg | -2/Quarantine | Reported Exp. Targeting Computer | -2/Quarantine | Reported Tesla Bomb Launcher | -2/Quarantine | Reported Imp. Matter Neutralizer | -2/Quarantine | Reported Cld. Plasma Rifle | -2/Quarantine | Reported Adv. Kinecellerator | -2/Quarantine | Reported Adv. Launcher Guidance Computer | -2/Quarantine | Reported Lrn. Tractor Beam | -2/Quarantine | Reported Exp. Thermal Generator | -2/Quarantine | Reported Exp. Cooling System | -2/Quarantine | Reported Vibroblade | -2/Quarantine | Reported Graviton Cannon | -2/Quarantine | Reported Exp. Actuator Array | -2/Quarantine | Reported Hvy. Hardcell Cannon | -2/Quarantine | Reported Exp. Transmission Jammer | -2/Quarantine | Reported Biometal Medium Treads | -2/Quarantine | Reported Imp. KE Penetrator | -2/Quarantine | Reported Exp. Flexi-carbon Leg | -2/Quarantine | Reported Imp. Energy Well | -2/Quarantine | Reported Plasma Lance | -2/Quarantine | Reported Cld. Q-thruster | -2/Quarantine | Reported Imp. Power Shielding | -2/Quarantine | Reported Imp. Actuator Array | -2/Quarantine | Reported Centrium Greatsword | -2/Quarantine | Reported Exp. Energy Well | -2/Quarantine | Reported Exp. ECM Suite | -2/Quarantine | Reported Phase Gun | -2/Quarantine | Reported Tiamat Missile Launcher | -2/Quarantine | Reported Adv. Variable Charge Gun | -2/Quarantine | Reported Exp. Focal Shield | -2/Quarantine | Reported Energy Well | -2/Quarantine | Reported Imp. Quantum Reactor | -2/Quarantine | Reported Centrium Heavy Treads | -2/Quarantine | Reported Com. HERF Cannon | -2/Quarantine | Reported Cmb. Linear Gravjet | -2/Quarantine | Reported Hdn. Centrium Leg | -2/Quarantine | Reported Exp. System Guard | -2/Quarantine | Reported Graphene Brace | -2/Quarantine | Reported Exp. Power Amplifier | -2/Quarantine | Reported Com. Battery | -2/Quarantine | Reported Hvy. Gatling Laser | -2/Quarantine | Reported Cld. Phase Gun | -2/Quarantine | Reported Energy Mantle | -2/Quarantine | Reported Exp. System Shield | -2/Quarantine | Reported Exp. Core Shielding | -2/Quarantine | Reported Adv. KE Penetrator | -2/Quarantine | Reported Component Analysis Suite | -2/Quarantine | Reported Kinetic Spear | -2/Quarantine | Reported Adv. VSS Leg | -2/Quarantine | Reported Exp. Gyrokinetic Inverter | -2/Quarantine | Reported Enh. Force Rifle | -2/Quarantine | Reported Exp. Matter Compressor | -2/Quarantine | Reported Imp. Terrain Scan Processor | -2/Quarantine | Reported Adv. Trap Scanner | -2/Quarantine | Reported Prc. Energy Filter | -2/Quarantine | Reported Exp. Force Field | -2/Quarantine | Reported Imp. Particle Charger | -2/Quarantine | Reported Thermal Defense Suite | -2/Quarantine | Reported Stealth Drone Bay | -2/Quarantine | Reported Ragnarok Missile Launcher | -2/Quarantine | Reported Exp. EM Disruption Field | -2/Quarantine | Reported Electron Diverter | -2/Quarantine | Reported Hvy. Tesla Rifle | -2/Quarantine | Reported Exp. Coolant Injector | -2/Quarantine | Reported Adv. Thermal Defense Suite | -2/Quarantine | Reported Helical Railgun | -2/Quarantine | Reported Imp. Powered Armor | -2/Quarantine | Reported Exp. Target Analyzer | -2/Quarantine | Reported Exp. Biometal Heavy Treads | -2/Quarantine | Reported Com. Linear Accelerator | -2/Quarantine | Reported Exp. Melee Analysis Suite | -2/Quarantine | Reported Exp. Biometal Medium Treads | -2/Quarantine | Reported Hvy. Neutron Cannon | -2/Quarantine | Reported Adv. Shield Generator | -2/Quarantine | Reported Proton Burst Cannon | -2/Quarantine | Reported Adv. Dynamic Insulation System | -2/Quarantine | Reported Cld. Impulse Thruster | -2/Quarantine | Reported Com. Mass Driver | -2/Quarantine | Reported Molecular Scythe | -2/Quarantine | Reported Adv. Force Booster | -2/Quarantine | Hacked Femtoactuators | -2/Quarantine | Hacked Imp. Propulsion Shielding | -2/Quarantine | Scanalyzed Adv. System Shield | -2/Quarantine | Extracted Imp. Cloaking Device | -2/Quarantine | Extracted Launcher Loader | -2/Quarantine | Extracted Hvy. Disruptor Cannon | -2/Quarantine | Extracted Launcher Guidance Computer | -2/Quarantine | Extracted Enh. Force Lance | -2/Quarantine | Extracted EM Disruption Field | -2/Quarantine | Extracted Adv. Energy Well | -2/Section 7 | Reported Adv. Plasma Rifle | -2/Section 7 | Reported Adv. EM Disruption Field | -2/Section 7 | Reported Exp. Reaction Control System | -2/Section 7 | Reported Hellfire Missile Launcher | -2/Section 7 | Reported Quantum Capacitor | -2/Section 7 | Reported Hardcell Cannon | -2/Section 7 | Reported Enh. Armored Heavy Treads | -2/Section 7 | Reported Adv. Component Analysis Suite | -2/Section 7 | Reported Centrium Heavy Armor Plating | -2/Section 7 | Reported Exp. Hacking Suite | -2/Section 7 | Archive Imp. Energy Mantle | -2/Section 7 | Archive Rnf. Quantum Reactor | -1/Command | Hacked Biometal Heavy Treads | -1/Command | Hacked Exp. Armor Integrity Analyzer | -1/Command | Hacked Centrium Leg | -1/Command | Hacked Quantum Reactor | -1/Command | Hacked Robot Schematics ------------------ M-36 Artificer | -6/Data Miner | Free G-50 Soldier | -6/Data Miner | Free A-27 Freighter | -6/Data Miner | Free A-15 Conveyor | -6/Data Miner | Free I-36 Angel | -6/Data Miner | Free S-27 Virus | -6/Data Miner | Free H-66 Slayer | -6/Data Miner | Free S-43 Plague | -3/Testing | Archive R-10 Processor | -3/Testing | Archive H-77 Assassin | -3/Testing | Archive M-30 Cleanser | -3/Testing | Archive C-55 Analyst | -3/Testing | Archive T-07 Excavator | -3/Testing | Archive P-80 Master | -2/Research | Hacked C-35 Carver | -2/Research | Hacked C-57 Dissector | -2/Quarantine | Hacked H-88 Terminator | -2/Section 7 | Archive Fabricated ------------ Antigrav System | x2 | -5/Factory Smartbomb Launcher | x1 | -4/Factory Exp. Signal Interpreter | x1 | -4/Factory Cld. Antigrav System | x1 | -4/Factory Cld. Antigrav System | x1 | -4/Factory Exp. Utility Shielding | x1 | -4/Factory Exp. Sensor Array | x1 | -3/Research Exp. Terrain Scanner | x1 | -3/Research Exp. Utility Shielding | x1 | -3/Research Exp. Sensor Array | x1 | -3/Testing Beam Splitter | x1 | -2/Research Exp. Terrain Scan Processor | x1 | -2/Research Exp. Force Field | x1 | -1/Access Exp. Propulsion Shielding | x1 | -1/Access Alien Tech Used ----------------- Integrated Reactor Dimensional Node Initializer Transdimensional Reconstructor Sigix Broadsword Phase Redirector Core Stripper Subatomic Replicator Sigix Terminator Supercharged Sigix Terminator Integrity Redistributor Integrated Mediator Core Membrane LRC Storage LRC Inertial Stabilizer Sigix Sheargun Terrabomb Achievements -------------- Sunderer WMD Challenges ------------ None Game ------ Seed FlyingDamperNanovents Manual? 0 Play Time 29:52:32 Cumulative 717.2 hours Start 2024.10.13 @ 19:01:50 End 2024.11.07 @ 15:16:28 Sessions 87 Manual Loads 0 Difficulty Rogue Special Mode None Game No. 132 Rogue 108 Adventurer 24 Explorer 0 Win Type 0 Total 26 Types 16/2/3/2/1/0/1/1/0 Lore% 72 Gallery% 91 Achievement% 86 Wizard Run 0 Options --------- Layout 0 ASCII 0 Keyboard 0 Movement Mouse Keybinds 0 Fullscreen 1 Font 36/Smallcaps Map View 76x50 Zoom Use 0% Tactical HUD 1 Map Filters SHIFT_HUE(340) Filters NONE Steam 1 RUN: 46c7a45b-9867-4f56-b45f-39b3cdb25742